Workbook

Sheet Head Tails
D3: 3 heads | E3: 2 heads, 1 tail | F3: 1 head 2 tails | G3: 3 tails | H3: Total
B4: Group 1 | H4: =SUM(D4:G4) -> 0
B5: Group 2 | H5: =SUM(D5:G5) -> 0
B6: Group 3 | H6: 0
B7: Group 4 | H7: 0

Sheet 1 - 3 Dice
A2: 1 Die | B2: 1 | C2: 1
B3: 2 | C3: 2
B4: 3 | C4: 3
B5: 4 | C5: 4
B6: 5 | C6: 5
B7: 6 | C7: 6
A10: 2 Dice | B10: 2 | C10: 1 | D10: 1
B11: 3 | C11: 1 | D11: 2 | E11: 2 | F11: 1
B12: 4 | C12: 1 | D12: 3 | E12: 2 | F12: 2 | G12: 3 | H12: 1
B13: 5 | C13: 1 | D13: 4 | E13: 2 | F13: 3 | G13: 3 | H13: 2 | I13: 4 | J13: 1
B14: 6 | C14: 1 | D14: 5 | E14: 2 | F14: 4 | G14: 3 | H14: 3 | I14: 4 | J14: 2 | K14: 5 | L14: 1
B15: 7 | C15: 1 | D15: 6 | E15: 2 | F15: 5 | G15: 3 | H15: 4 | I15: 4 | J15: 3 | K15: 5 | L15: 2 | M15: 6 | N15: 1
B16: 8 | C16: 2 | D16: 6 | E16: 3 | F16: 5 | G16: 4 | H16: 4 | I16: 5 | J16: 3 | K16: 6 | L16: 2
B17: 9 | C17: 3 | D17: 6 | E17: 4 | F17: 5 | G17: 5 | H17: 4 | I17: 6 | J17: 3
B18: 10 | C18: 4 | D18: 6 | E18: 5 | F18: 5 | G18: 6 | H18: 4
B19: 11 | C19: 5 | D19: 6 | E19: 6 | F19: 5
B20: 12 | C20: 6 | D20: 6
A23: 3 Dice | B23: 3 | C23: 1 | D23: 1 | E23: 1
B24: 4 | C24: 1 | D24: 1 | E24: 2 | F24: 1 | G24: 2 | H24: 1 | I24: 2 | J24: 1 | K24: 1
B25: 5 | C25: 1 | D25: 1 | E25: 3 | F25: 1 | G25: 2 | H25: 2 | I25: 1 | J25: 3 | K25: 1 | L25: 2 | M25: 1 | N25: 2 | O25: 2 | P25: 2 | Q25: 1 | R25: 3 | S25: 1 | T25: 1
B26: 6 | C26: 1 | D26: 1 | E26: 4 | F26: 1 | G26: 2 | H26: 3 | I26: 1 | J26: 3 | K26: 2 | L26: 1 | M26: 4 | N26: 1 | O26: 2 | P26: 1 | Q26: 3 | R26: 2 | S26: 2 | T26: 2 | U26: 2 | V26: 3 | W26: 1 | X26: 3 | Y26: 1 | Z26: 2 | AA26: 3 | AB26: 2 | AC26: 1 | AD26: 4 | AE26: 1 | AF26: 1
B27: 7 | C27: 1 | D27: 1 | E27: 5 | F27: 1 | G27: 2 | H27: 4 | I27: 1 | J27: 3 | K27: 3 | L27: 1 | M27: 4 | N27: 2 | O27: 1 | P27: 5 | Q27: 1 | R27: 2 | S27: 1 | T27: 4 | U27: 2 | V27: 2 | W27: 3 | X27: 2 | Y27: 3 | Z27: 2 | AA27: 2 | AB27: 4 | AC27: 1 | AD27: 3 | AE27: 1 | AF27: 3 | AG27: 3 | AH27: 2 | AI27: 2 | AJ27: 3 | AK27: 3 | AL27: 1 | AM27: 4 | AN27: 1 | AO27: 2 | AP27: 4 | AQ27: 2 | AR27: 1 | AS27: 5 | AT27: 1 | AU27: 1
B28: 8 | C28: 1 | D28: 1 | E28: 6 | F28: 1 | G28: 2 | H28: 5 | I28: 1 | J28: 3 | K28: 4 | L28: 1 | M28: 4 | N28: 3 | O28: 1 | P28: 5 | Q28: 2 | R28: 1 | S28: 6 | T28: 1 | U28: 2 | V28: 1 | W28: 5 | X28: 2 | Y28: 2 | Z28: 4 | AA28: 2 | AB28: 3 | AC28: 3 | AD28: 2 | AE28: 4 | AF28: 2 | AG28: 2 | AH28: 5 | AI28: 1 | AJ28: 3 | AK28: 1 | AL28: 4 | AM28: 3 | AN28: 2 | AO28: 3 | AP28: 3 | AQ28: 3 | AR28: 2 | AS28: 3 | AT28: 4 | AU28: 1 | AV28: 4 | AW28: 1 | AX28: 3 | AY28: 4 | AZ28: 2 | BA28: 2 | BB28: 4 | BC28: 3 | BD28: 1 | BE28: 5 | BF28: 1 | BG28: 2 | BH28: 5 | BI28: 2 | BJ28: 1 | BK28: 6 | BL28: 1 | BM28: 1
B29: 9 | C29: 1 | D29: 2 | E29: 6 | F29: 1 | G29: 3 | H29: 5 | I29: 1 | J29: 4 | K29: 4 | L29: 1 | M29: 5 | N29: 3 | O29: 1 | P29: 6 | Q29: 2 | R29: 2 | S29: 1 | T29: 6 | U29: 2 | V29: 2 | W29: 5 | X29: 2 | Y29: 3 | Z29: 4 | AA29: 2 | AB29: 4 | AC29: 3 | AD29: 2 | AE29: 5 | AF29: 2 | AG29: 2 | AH29: 6 | AI29: 1 | AJ29: 3 | AK29: 1 | AL29: 5 | AM29: 3 | AN29: 2 | AO29: 4 | AP29: 3 | AQ29: 3 | AR29: 3 | AS29: 3 | AT29: 4 | AU29: 2 | AV29: 3 | AW29: 5 | AX29: 1 | AY29: 4 | AZ29: 1 | BA29: 4 | BB29: 4 | BC29: 2 | BD29: 3 | BE29: 4 | BF29: 3 | BG29: 2 | BH29: 4 | BI29: 4 | BJ29: 1 | BK29: 5 | BL29: 1 | BM29: 3 | BN29: 5 | BO29: 2 | BP29: 2 | BQ29: 5 | BR29: 3 | BS29: 1 | BT29: 6 | BU29: 1 | BV29: 2 | BW29: 6 | BX29: 2 | BY29: 1
B30: 10 | C30: 1 | D30: 3 | E30: 6 | F30: 1 | G30: 4 | H30: 5 | I30: 1 | J30: 5 | K30: 4 | L30: 1 | M30: 6 | N30: 3 | O30: 2 | P30: 2 | Q30: 6 | R30: 2 | S30: 3 | T30: 5 | U30: 2 | V30: 4 | W30: 4 | X30: 2 | Y30: 5 | Z30: 3 | AA30: 2 | AB30: 6 | AC30: 2 | AD30: 3 | AE30: 1 | AF30: 6 | AG30: 3 | AH30: 2 | AI30: 5 | AJ30: 3 | AK30: 3 | AL30: 4 | AM30: 3 | AN30: 4 | AO30: 3 | AP30: 3 | AQ30: 5 | AR30: 2 | AS30: 3 | AT30: 6 | AU30: 1 | AV30: 4 | AW30: 1 | AX30: 5 | AY30: 4 | AZ30: 2 | BA30: 4 | BB30: 4 | BC30: 3 | BD30: 3 | BE30: 4 | BF30: 4 | BG30: 2 | BH30: 4 | BI30: 5 | BJ30: 1 | BK30: 5 | BL30: 1 | BM30: 4 | BN30: 5 | BO30: 2 | BP30: 3 | BQ30: 5 | BR30: 3 | BS30: 2 | BT30: 5 | BU30: 4 | BV30: 1 | BW30: 6 | BX30: 1 | BY30: 3 | BZ30: 6 | CA30: 2 | CB30: 2 | CC30: 6 | CD30: 3 | CE30: 1
B31: 11 | C31: 1 | D31: 4 | E31: 6 | F31: 1 | G31: 5 | H31: 5 | I31: 1 | J31: 6 | K31: 4 | L31: 2 | M31: 3 | N31: 6 | O31: 2 | P31: 4 | Q31: 5 | R31: 2 | S31: 5 | T31: 4 | U31: 2 | V31: 6 | W31: 3 | X31: 3 | Y31: 2 | Z31: 6 | AA31: 3 | AB31: 3 | AC31: 5 | AD31: 3 | AE31: 4 | AF31: 4 | AG31: 3 | AH31: 5 | AI31: 3 | AJ31: 3 | AK31: 6 | AL31: 2 | AM31: 4 | AN31: 1 | AO31: 6 | AP31: 4 | AQ31: 2 | AR31: 5 | AS31: 4 | AT31: 3 | AU31: 4 | AV31: 4 | AW31: 4 | AX31: 3 | AY31: 4 | AZ31: 5 | BA31: 2 | BB31: 4 | BC31: 6 | BD31: 1 | BE31: 5 | BF31: 1 | BG31: 5 | BH31: 5 | BI31: 2 | BJ31: 4 | BK31: 5 | BL31: 3 | BM31: 3 | BN31: 5 | BO31: 4 | BP31: 2 | BQ31: 5 | BR31: 5 | BS31: 1 | BT31: 6 | BU31: 1 | BV31: 4 | BW31: 6 | BX31: 2 | BY31: 3 | BZ31: 6 | CA31: 3 | CB31: 2 | CC31: 6 | CD31: 4 | CE31: 1
B32: 12 | C32: 1 | D32: 5 | E32: 6 | F32: 1 | G32: 6 | H32: 5 | I32: 2 | J32: 4 | K32: 6 | L32: 2 | M32: 5 | N32: 5 | O32: 2 | P32: 6 | Q32: 4 | R32: 3 | S32: 3 | T32: 6 | U32: 3 | V32: 4 | W32: 5 | X32: 3 | Y32: 5 | Z32: 4 | AA32: 3 | AB32: 6 | AC32: 3 | AD32: 4 | AE32: 2 | AF32: 6 | AG32: 4 | AH32: 3 | AI32: 5 | AJ32: 4 | AK32: 4 | AL32: 4 | AM32: 4 | AN32: 5 | AO32: 3 | AP32: 4 | AQ32: 6 | AR32: 2 | AS32: 5 | AT32: 1 | AU32: 6 | AV32: 5 | AW32: 2 | AX32: 5 | AY32: 5 | AZ32: 3 | BA32: 4 | BB32: 5 | BC32: 4 | BD32: 3 | BE32: 5 | BF32: 5 | BG32: 2 | BH32: 5 | BI32: 6 | BJ32: 1 | BK32: 6 | BL32: 1 | BM32: 5 | BN32: 6 | BO32: 2 | BP32: 4 | BQ32: 6 | BR32: 3 | BS32: 3 | BT32: 6 | BU32: 4 | BV32: 2 | BW32: 6 | BX32: 5 | BY32: 1
B33: 13 | C33: 1 | D33: 6 | E33: 6 | F33: 2 | G33: 5 | H33: 6 | I33: 2 | J33: 6 | K33: 5 | L33: 3 | M33: 4 | N33: 6 | O33: 3 | P33: 5 | Q33: 5 | R33: 3 | S33: 6 | T33: 4 | U33: 4 | V33: 3 | W33: 6 | X33: 4 | Y33: 4 | Z33: 5 | AA33: 4 | AB33: 5 | AC33: 4 | AD33: 4 | AE33: 6 | AF33: 3 | AG33: 5 | AH33: 2 | AI33: 6 | AJ33: 5 | AK33: 3 | AL33: 5 | AM33: 5 | AN33: 4 | AO33: 4 | AP33: 5 | AQ33: 5 | AR33: 3 | AS33: 5 | AT33: 6 | AU33: 2 | AV33: 6 | AW33: 1 | AX33: 6 | AY33: 6 | AZ33: 2 | BA33: 5 | BB33: 6 | BC33: 3 | BD33: 4 | BE33: 6 | BF33: 4 | BG33: 3 | BH33: 6 | BI33: 5 | BJ33: 2 | BK33: 6 | BL33: 6 | BM33: 1
B34: 14 | C34: 2 | D34: 6 | E34: 6 | F34: 3 | G34: 5 | H34: 6 | I34: 3 | J34: 6 | K34: 5 | L34: 4 | M34: 4 | N34: 6 | O34: 4 | P34: 5 | Q34: 5 | R34: 4 | S34: 6 | T34: 4 | U34: 5 | V34: 3 | W34: 6 | X34: 5 | Y34: 4 | Z34: 5 | AA34: 5 | AB34: 5 | AC34: 4 | AD34: 5 | AE34: 6 | AF34: 3 | AG34: 6 | AH34: 2 | AI34: 6 | AJ34: 6 | AK34: 3 | AL34: 5 | AM34: 6 | AN34: 4 | AO34: 4 | AP34: 6 | AQ34: 5 | AR34: 3 | AS34: 6 | AT34: 6 | AU34: 2
B35: 15 | C35: 3 | D35: 6 | E35: 6 | F35: 4 | G35: 5 | H35: 6 | I35: 4 | J35: 6 | K35: 5 | L35: 5 | M35: 4 | N35: 6 | O35: 5 | P35: 5 | Q35: 5 | R35: 5 | S35: 6 | T35: 4 | U35: 6 | V35: 3 | W35: 6 | X35: 6 | Y35: 4 | Z35: 5 | AA35: 6 | AB35: 5 | AC35: 4 | AD35: 6 | AE35: 6 | AF35: 3
B36: 16 | C36: 4 | D36: 6 | E36: 6 | F36: 5 | G36: 5 | H36: 6 | I36: 5 | J36: 6 | K36: 5 | L36: 6 | M36: 4 | N36: 6 | O36: 6 | P36: 5 | Q36: 5 | R36: 6 | S36: 6 | T36: 4
B37: 17 | C37: 5 | D37: 6 | E37: 6 | F37: 6 | G37: 5 | H37: 6 | I37: 6 | J37: 6 | K37: 5
B38: 18 | C38: 6 | D38: 6 | E38: 6

Sheet 4 Dice
A1: 4 Dice
B4: 4 | C4: 1 | D4: 1 | E4: 1 | F4: 1
B5: 5 | C5: 1 | D5: 1 | E5: 1 | F5: 2 | G5: 1 | H5: 1 | I5: 2 | J5: 1 | K5: 1 | L5: 2 | M5: 1 | N5: 1 | O5: 2 | P5: 1 | Q5: 1 | R5: 1
B6: 6 | C6: 1 | D6: 1 | E6: 1 | F6: 3 | G6: 1 | H6: 1 | I6: 2 | J6: 2 | K6: 1 | L6: 1 | M6: 3 | N6: 1 | O6: 1 | P6: 2 | Q6: 1 | R6: 2 | S6: 1 | T6: 2 | U6: 2 | V6: 1 | W6: 1 | X6: 3 | Y6: 1 | Z6: 1 | AA6: 2 | AB6: 1 | AC6: 1 | AD6: 2 | AE6: 2 | AF6: 1 | AG6: 2 | AH6: 1 | AI6: 2 | AJ6: 2 | AK6: 1 | AL6: 1 | AM6: 3 | AN6: 1 | AO6: 1 | AP6: 1
B7: 7 | C7: 1 | D7: 1 | E7: 1 | F7: 4 | G7: 1 | H7: 1 | I7: 2 | J7: 3 | K7: 1 | L7: 1 | M7: 3 | N7: 2 | O7: 1 | P7: 1 | Q7: 4 | R7: 1 | S7: 1 | T7: 2 | U7: 1 | V7: 3 | W7: 1 | X7: 2 | Y7: 2 | Z7: 2 | AA7: 1 | AB7: 2 | AC7: 3 | AD7: 1 | AE7: 1 | AF7: 3 | AG7: 1 | AH7: 2 | AI7: 1 | AJ7: 3 | AK7: 2 | AL7: 1 | AM7: 1 | AN7: 4 | AO7: 1 | AP7: 1 | AQ7: 2 | AR7: 1 | AS7: 1 | AT7: 3 | AU7: 2 | AV7: 1 | AW7: 2 | AX7: 2 | AY7: 2 | AZ7: 1 | BA7: 3 | BB7: 1 | BC7: 2 | BD7: 2 | BE7: 1 | BF7: 2 | BG7: 2 | BH7: 2 | BI7: 2 | BJ7: 1 | BK7: 2 | BL7: 3 | BM7: 1 | BN7: 1 | BO7: 3 | BP7: 1 | BQ7: 1 | BR7: 2 | BS7: 3 | BT7: 1 | BU7: 2 | BV7: 1 | BW7: 3 | BX7: 2 | BY7: 1 | BZ7: 1 | CA7: 4 | CB7: 1 | CC7: 1 | CD7: 1
B8: 8 | C8: 1 | D8: 1 | E8: 1 | F8: 5 | G8: 1 | H8: 1 | I8: 2 | J8: 4 | K8: 1 | L8: 1 | M8: 3 | N8: 3 | O8: 1 | P8: 1 | Q8: 4 | R8: 2 | S8: 1 | T8: 1 | U8: 5 | V8: 1 | W8: 1 | X8: 2 | Y8: 1 | Z8: 4 | AA8: 1 | AB8: 2 | AC8: 2 | AD8: 3 | AE8: 1 | AF8: 2 | AG8: 3 | AH8: 2 | AI8: 1 | AJ8: 2 | AK8: 4 | AL8: 1 | AM8: 1 | AN8: 3 | AO8: 1 | AP8: 3 | AQ8: 1 | AR8: 3 | AS8: 2 | AT8: 2 | AU8: 1 | AV8: 3 | AW8: 3 | AX8: 1 | AY8: 1 | AZ8: 4 | BA8: 1 | BB8: 2 | BC8: 1 | BD8: 4 | BE8: 2 | BF8: 1 | BG8: 1 | BH8: 5 | BI8: 1 | BJ8: 1 | BK8: 2 | BL8: 1 | BM8: 1 | BN8: 4 | BO8: 2 | BP8: 1 | BQ8: 2 | BR8: 3 | BS8: 2 | BT8: 1 | BU8: 3 | BV8: 2 | BW8: 2 | BX8: 1 | BY8: 4 | BZ8: 1 | CA8: 2 | CB8: 2 | CC8: 1 | CD8: 3 | CE8: 2 | CF8: 2 | CG8: 2 | CH8: 2 | CI8: 2 | CJ8: 2 | CK8: 3 | CL8: 1 | CM8: 2 | CN8: 3 | CO8: 1 | CP8: 2 | CQ8: 2 | CR8: 3 | CS8: 2 | CT8: 1 | CU8: 2 | CV8: 4 | CW8: 1 | CX8: 1 | CY8: 3 | CZ8: 1 | DA8: 1 | DB8: 3 | DC8: 3 | DD8: 1 | DE8: 2 | DF8: 2 | DG8: 3 | DH8: 1 | DI8: 3 | DJ8: 1 | DK8: 3 | DL8: 2 | DM8: 1 | DN8: 2 | DO8: 3 | DP8: 2 | DQ8: 2 | DR8: 1 | DS8: 3 | DT8: 3 | DU8: 1 | DV8: 1 | DW8: 4 | DX8: 1 | DY8: 1 | DZ8: 2 | EA8: 4 | EB8: 1 | EC8: 2 | ED8: 1 | EE8: 4 | EF8: 2 | EG8: 1 | EH8: 1 | EI8: 5 | EJ8: 1 | EK8: 1 | EL8: 1
B9: 9 | C9: 1 | D9: 1 | E9: 1 | F9: 6 | G9: 1 | H9: 1 | I9: 2 | J9: 5 | K9: 1 | L9: 1 | M9: 3 | N9: 4 | O9: 1 | P9: 1 | Q9: 4 | R9: 3 | S9: 1 | T9: 1 | U9: 5 | V9: 2 | W9: 1 | X9: 1 | Y9: 6 | Z9: 1 | AA9: 1 | AB9: 2 | AC9: 1 | AD9: 5 | AE9: 1 | AF9: 2 | AG9: 2 | AH9: 4 | AI9: 1 | AJ9: 2 | AK9: 3 | AL9: 3 | AM9: 1 | AN9: 2 | AO9: 4 | AP9: 2 | AQ9: 1 | AR9: 2 | AS9: 5 | AT9: 1 | AU9: 1 | AV9: 3 | AW9: 1 | AX9: 4 | AY9: 1 | AZ9: 3 | BA9: 2 | BB9: 3 | BC9: 1 | BD9: 3 | BE9: 3 | BF9: 2 | BG9: 1 | BH9: 3 | BI9: 4 | BJ9: 1 | BK9: 1 | BL9: 4 | BM9: 1 | BN9: 3 | BO9: 1 | BP9: 4 | BQ9: 2 | BR9: 2 | BS9: 1 | BT9: 4 | BU9: 3 | BV9: 1 | BW9: 1 | BX9: 5 | BY9: 1 | BZ9: 2 | CA9: 1 | CB9: 5 | CC9: 2 | CD9: 1 | CE9: 1 | CF9: 6 | CG9: 1 | CH9: 1 | CI9: 2 | CJ9: 1 | CK9: 1 | CL9: 5 | CM9: 2 | CN9: 1 | CO9: 2 | CP9: 4 | CQ9: 2 | CR9: 1 | CS9: 3 | CT9: 3 | CU9: 2 | CV9: 1 | CW9: 4 | CX9: 2 | CY9: 2 | CZ9: 1 | DA9: 5 | DB9: 1 | DC9: 2 | DD9: 2 | DE9: 1 | DF9: 4 | DG9: 2 | DH9: 2 | DI9: 2 | DJ9: 3 | DK9: 2 | DL9: 2 | DM9: 3 | DN9: 2 | DO9: 2 | DP9: 2 | DQ9: 4 | DR9: 1 | DS9: 2 | DT9: 3 | DU9: 1 | DV9: 3 | DW9: 2 | DX9: 3 | DY9: 2 | DZ9: 2 | EA9: 2 | EB9: 3 | EC9: 3 | ED9: 1 | EE9: 2 | EF9: 4 | EG9: 1 | EH9: 2 | EI9: 2 | EJ9: 4 | EK9: 2 | EL9: 1 | EM9: 2 | EN9: 5 | EO9: 1 | EP9: 1 | EQ9: 3 | ER9: 1 | ES9: 1 | ET9: 4 | EU9: 3 | EV9: 1 | EW9: 2 | EX9: 3 | EY9: 3 | EZ9: 1 | FA9: 3 | FB9: 2 | FC9: 3 | FD9: 1 | FE9: 4 | FF9: 1 | FG9: 3 | FH9: 2 | FI9: 1 | FJ9: 3 | FK9: 3 | FL9: 2 | FM9: 2 | FN9: 2 | FO9: 3 | FP9: 2 | FQ9: 3 | FR9: 1 | FS9: 3 | FT9: 3 | FU9: 1 | FV9: 2 | FW9: 3 | FX9: 3 | FY9: 2 | FZ9: 1 | GA9: 3 | GB9: 4 | GC9: 1 | GD9: 1 | GE9: 4 | GF9: 1 | GG9: 1 | GH9: 3 | GI9: 4 | GJ9: 1 | GK9: 2 | GL9: 2 | GM9: 4 | GN9: 1 | GO9: 3 | GP9: 1 | GQ9: 4 | GR9: 2 | GS9: 1 | GT9: 2 | GU9: 4 | GV9: 2 | GW9: 2 | GX9: 1 | GY9: 4 | GZ9: 3 | HA9: 1 | HB9: 1 | HC9: 5 | HD9: 1 | HE9: 1 | HF9: 2 | HG9: 5 | HH9: 1 | HI9: 2 | HJ9: 1 | HK9: 5 | HL9: 2 | HM9: 1 | HN9: 1 | HO9: 6 | HP9: 1 | HQ9: 1 | HR9: 1
B10: 10 | C10: 1 | D10: 1 | E10: 2 | F10: 6 | G10: 1 | H10: 1 | I10: 3 | J10: 5 | K10: 1 | L10: 1 | M10: 4 | N10: 4 | O10: 1 | P10: 1 | Q10: 5 | R10: 3 | S10: 1 | T10: 1 | U10: 6 | V10: 2 | W10: 1 | X10: 2 | Y10: 1 | Z10: 6 | AA10: 1 | AB10: 2 | AC10: 2 | AD10: 5 | AE10: 1 | AF10: 2 | AG10: 3 | AH10: 4 | AI10: 1 | AJ10: 2 | AK10: 4 | AL10: 3 | AM10: 1 | AN10: 2 | AO10: 5 | AP10: 2 | AQ10: 1 | AR10: 2 | AS10: 6 | AT10: 1 | AU10: 1 | AV10: 3 | AW10: 1 | AX10: 5 | AY10: 1 | AZ10: 3 | BA10: 2 | BB10: 4 | BC10: 1 | BD10: 3 | BE10: 3 | BF10: 3 | BG10: 1 | BH10: 3 | BI10: 4 | BJ10: 2 | BK10: 1 | BL10: 3 | BM10: 5 | BN10: 1 | BO10: 1 | BP10: 4 | BQ10: 1 | BR10: 4 | BS10: 1 | BT10: 4 | BU10: 2 | BV10: 3 | BW10: 1 | BX10: 4 | BY10: 3 | BZ10: 2 | CA10: 1 | CB10: 4 | CC10: 4 | CD10: 1 | CE10: 1 | CF10: 5 | CG10: 1 | CH10: 3 | CI10: 1 | CJ10: 5 | CK10: 2 | CL10: 2 | CM10: 1 | CN10: 5 | CO10: 3 | CP10: 1 | CQ10: 1 | CR10: 6 | CS10: 1 | CT10: 2 | CU10: 1 | CV10: 6 | CW10: 2 | CX10: 1 | CY10: 2 | CZ10: 1 | DA10: 1 | DB10: 6 | DC10: 2 | DD10: 1 | DE10: 2 | DF10: 5 | DG10: 2 | DH10: 1 | DI10: 3 | DJ10: 4 | DK10: 2 | DL10: 1 | DM10: 4 | DN10: 3 | DO10: 2 | DP10: 1 | DQ10: 5 | DR10: 2 | DS10: 2 | DT10: 1 | DU10: 6 | DV10: 1 | DW10: 2 | DX10: 2 | DY10: 1 | DZ10: 5 | EA10: 2 | EB10: 2 | EC10: 2 | ED10: 4 | EE10: 2 | EF10: 2 | EG10: 3 | EH10: 3 | EI10: 2 | EJ10: 2 | EK10: 4 | EL10: 2 | EM10: 2 | EN10: 2 | EO10: 5 | EP10: 1 | EQ10: 2 | ER10: 3 | ES10: 1 | ET10: 4 | EU10: 2 | EV10: 3 | EW10: 2 | EX10: 3 | EY10: 2 | EZ10: 3 | FA10: 3 | FB10: 2 | FC10: 2 | FD10: 3 | FE10: 4 | FF10: 1 | FG10: 2 | FH10: 4 | FI10: 1 | FJ10: 3 | FK10: 2 | FL10: 4 | FM10: 2 | FN10: 2 | FO10: 2 | FP10: 4 | FQ10: 3 | FR10: 1 | FS10: 2 | FT10: 5 | FU10: 1 | FV10: 2 | FW10: 2 | FX10: 5 | FY10: 2 | FZ10: 1 | GA10: 2 | GB10: 6 | GC10: 1 | GD10: 1 | GE10: 3 | GF10: 1 | GG10: 1 | GH10: 5 | GI10: 3 | GJ10: 1 | GK10: 2 | GL10: 4 | GM10: 3 | GN10: 1 | GO10: 3 | GP10: 3 | GQ10: 3 | GR10: 1 | GS10: 4 | GT10: 2 | GU10: 3 | GV10: 1 | GW10: 5 | GX10: 1 | GY10: 3 | GZ10: 2 | HA10: 1 | HB10: 4 | HC10: 3 | HD10: 2 | HE10: 2 | HF10: 3 | HG10: 3 | HH10: 2 | HI10: 3 | HJ10: 2 | HK10: 3 | HL10: 2 | HM10: 4 | HN10: 1 | HO10: 3 | HP10: 3 | HQ10: 1 | HR10: 3 | HS10: 3 | HT10: 3 | HU10: 2 | HV10: 2 | HW10: 3 | HX10: 3 | HY10: 3 | HZ10: 1 | IA10: 3 | IB10: 4 | IC10: 1 | ID10: 2 | IE10: 3 | IF10: 4 | IG10: 2 | IH10: 1 | II10: 3 | IJ10: 5 | IK10: 1 | IL10: 1 | IM10: 4 | IN10: 1 | IO10: 1 | IP10: 4 | IQ10: 4 | IR10: 1 | IS10: 2 | IT10: 3 | IU10: 4 | IV10: 1 | IW10: 3 | IX10: 2 | IY10: 4 | IZ10: 1 | JA10: 4 | JB10: 1 | JC10: 4 | JD10: 2 | JE10: 1 | JF10: 3 | JG10: 4 | JH10: 2 | JI10: 2 | JJ10: 2 | JK10: 4 | JL10: 2 | JM10: 3 | JN10: 1 | JO10: 4 | JP10: 3 | JQ10: 1 | JR10: 2 | JS10: 4 | JT10: 3 | JU10: 2 | JV10: 1 | JW10: 4 | JX10: 4 | JY10: 1 | JZ10: 1 | KA10: 5 | KB10: 1 | KC10: 1 | KD10: 3 | KE10: 5 | KF10: 1 | KG10: 2 | KH10: 2 | KI10: 5 | KJ10: 1 | KK10: 3 | KL10: 1 | KM10: 5 | KN10: 2 | KO10: 1 | KP10: 2 | KQ10: 5 | KR10: 2 | KS10: 2 | KT10: 1 | KU10: 5 | KV10: 3 | KW10: 1 | KX10: 1 | KY10: 6 | KZ10: 1 | LA10: 1 | LB10: 2 | LC10: 6 | LD10: 1 | LE10: 2 | LF10: 1 | LG10: 6 | LH10: 2 | LI10: 1 | LJ10: 1
B11: 11 | C11: 1 | D11: 1 | E11: 3 | F11: 6 | G11: 1 | H11: 1 | I11: 4 | J11: 5 | K11: 1 | L11: 1 | M11: 5 | N11: 4 | O11: 1 | P11: 1 | Q11: 6 | R11: 3 | S11: 1 | T11: 2 | U11: 2 | V11: 6 | W11: 1 | X11: 2 | Y11: 3 | Z11: 5 | AA11: 1 | AB11: 2 | AC11: 4 | AD11: 4 | AE11: 1 | AF11: 2 | AG11: 5 | AH11: 3 | AI11: 1 | AJ11: 2 | AK11: 6 | AL11: 2 | AM11: 1 | AN11: 3 | AO11: 1 | AP11: 6 | AQ11: 1 | AR11: 3 | AS11: 2 | AT11: 5 | AU11: 1 | AV11: 3 | AW11: 3 | AX11: 4 | AY11: 1 | AZ11: 3 | BA11: 4 | BB11: 3 | BC11: 1 | BD11: 3 | BE11: 5 | BF11: 2 | BG11: 1 | BH11: 3 | BI11: 6 | BJ11: 1 | BK11: 1 | BL11: 4 | BM11: 1 | BN11: 5 | BO11: 1 | BP11: 4 | BQ11: 2 | BR11: 4 | BS11: 1 | BT11: 4 | BU11: 3 | BV11: 3 | BW11: 1 | BX11: 4 | BY11: 4 | BZ11: 2 | CA11: 1 | CB11: 4 | CC11: 5 | CD11: 1 | CE11: 1 | CF11: 5 | CG11: 1 | CH11: 4 | CI11: 1 | CJ11: 5 | CK11: 2 | CL11: 3 | CM11: 1 | CN11: 5 | CO11: 3 | CP11: 2 | CQ11: 1 | CR11: 5 | CS11: 4 | CT11: 1 | CU11: 1 | CV11: 6 | CW11: 1 | CX11: 3 | CY11: 1 | CZ11: 6 | DA11: 2 | DB11: 2 | DC11: 1 | DD11: 6 | DE11: 3 | DF11: 1 | DG11: 2 | DH11: 1 | DI11: 2 | DJ11: 6 | DK11: 2 | DL11: 1 | DM11: 3 | DN11: 5 | DO11: 2 | DP11: 1 | DQ11: 4 | DR11: 4 | DS11: 2 | DT11: 1 | DU11: 5 | DV11: 3 | DW11: 2 | DX11: 1 | DY11: 6 | DZ11: 2 | EA11: 2 | EB11: 2 | EC11: 1 | ED11: 6 | EE11: 2 | EF11: 2 | EG11: 2 | EH11: 5 | EI11: 2 | EJ11: 2 | EK11: 3 | EL11: 4 | EM11: 2 | EN11: 2 | EO11: 4 | EP11: 3 | EQ11: 2 | ER11: 2 | ES11: 5 | ET11: 2 | EU11: 2 | EV11: 2 | EW11: 6 | EX11: 1 | EY11: 2 | EZ11: 3 | FA11: 1 | FB11: 5 | FC11: 2 | FD11: 3 | FE11: 2 | FF11: 4 | FG11: 2 | FH11: 3 | FI11: 3 | FJ11: 3 | FK11: 2 | FL11: 3 | FM11: 4 | FN11: 2 | FO11: 2 | FP11: 3 | FQ11: 5 | FR11: 1 | FS11: 2 | FT11: 4 | FU11: 1 | FV11: 4 | FW11: 2 | FX11: 4 | FY11: 2 | FZ11: 3 | GA11: 2 | GB11: 4 | GC11: 3 | GD11: 2 | GE11: 2 | GF11: 4 | GG11: 4 | GH11: 1 | GI11: 2 | GJ11: 5 | GK11: 1 | GL11: 3 | GM11: 2 | GN11: 5 | GO11: 2 | GP11: 2 | GQ11: 2 | GR11: 5 | GS11: 3 | GT11: 1 | GU11: 2 | GV11: 6 | GW11: 1 | GX11: 2 | GY11: 2 | GZ11: 6 | HA11: 2 | HB11: 1 | HC11: 3 | HD11: 1 | HE11: 1 | HF11: 6 | HG11: 3 | HH11: 1 | HI11: 2 | HJ11: 5 | HK11: 3 | HL11: 1 | HM11: 3 | HN11: 4 | HO11: 3 | HP11: 1 | HQ11: 4 | HR11: 3 | HS11: 3 | HT11: 1 | HU11: 5 | HV11: 2 | HW11: 3 | HX11: 1 | HY11: 6 | HZ11: 1 | IA11: 3 | IB11: 2 | IC11: 1 | ID11: 5 | IE11: 3 | IF11: 2 | IG11: 2 | IH11: 4 | II11: 3 | IJ11: 2 | IK11: 3 | IL11: 3 | IM11: 3 | IN11: 2 | IO11: 4 | IP11: 2 | IQ11: 3 | IR11: 2 | IS11: 5 | IT11: 1 | IU11: 3 | IV11: 3 | IW11: 1 | IX11: 4 | IY11: 3 | IZ11: 3 | JA11: 2 | JB11: 3 | JC11: 3 | JD11: 3 | JE11: 3 | JF11: 2 | JG11: 3 | JH11: 3 | JI11: 4 | JJ11: 1 | JK11: 3 | JL11: 4 | JM11: 1 | JN11: 3 | JO11: 3 | JP11: 4 | JQ11: 2 | JR11: 2 | JS11: 3 | JT11: 4 | JU11: 3 | JV11: 1 | JW11: 3 | JX11: 5 | JY11: 1 | JZ11: 2 | KA11: 3 | KB11: 5 | KC11: 2 | KD11: 1 | KE11: 3 | KF11: 6 | KG11: 1 | KH11: 1 | KI11: 4 | KJ11: 1 | KK11: 1 | KL11: 5 | KM11: 4 | KN11: 1 | KO11: 2 | KP11: 4 | KQ11: 4 | KR11: 1 | KS11: 3 | KT11: 3 | KU11: 4 | KV11: 1 | KW11: 4 | KX11: 2 | KY11: 4 | KZ11: 1 | LA11: 5 | LB11: 1 | LC11: 4 | LD11: 2 | LE11: 1 | LF11: 4 | LG11: 4 | LH11: 2 | LI11: 2 | LJ11: 3 | LK11: 4 | LL11: 2 | LM11: 3 | LN11: 2 | LO11: 4 | LP11: 2 | LQ11: 4 | LR11: 1 | LS11: 4 | LT11: 3 | LU11: 1 | LV11: 3 | LW11: 4 | LX11: 3 | LY11: 2 | LZ11: 2 | MA11: 4 | MB11: 3 | MC11: 3 | MD11: 1 | ME11: 4 | MF11: 4 | MG11: 1 | MH11: 2 | MI11: 4 | MJ11: 4 | MK11: 2 | ML11: 1 | MM11: 4 | MN11: 5 | MO11: 1 | MP11: 1 | MQ11: 5 | MR11: 1 | MS11: 1 | MT11: 4 | MU11: 5 | MV11: 1 | MW11: 2 | MX11: 3 | MY11: 5 | MZ11: 1 | NA11: 3 | NB11: 2 | NC11: 5 | ND11: 1 | NE11: 4 | NF11: 1 | NG11: 5 | NH11: 2 | NI11: 1 | NJ11: 3 | NK11: 5 | NL11: 2 | NM11: 2 | NN11: 2 | NO11: 5 | NP11: 2 | NQ11: 3 | NR11: 1 | NS11: 5 | NT11: 3 | NU11: 1 | NV11: 2 | NW11: 5 | NX11: 3 | NY11: 2 | NZ11: 1 | OA11: 5 | OB11: 4 | OC11: 1 | OD11: 1 | OE11: 6 | OF11: 1 | OG11: 1 | OH11: 3 | OI11: 6 | OJ11: 1 | OK11: 2 | OL11: 2 | OM11: 6 | ON11: 1 | OO11: 3 | OP11: 1 | OQ11: 6 | OR11: 2 | OS11: 1 | OT11: 2 | OU11: 6 | OV11: 2 | OW11: 2 | OX11: 1 | OY11: 6 | OZ11: 3 | PA11: 1 | PB11: 1
B12: 12 | C12: 1 | D12: 1 | E12: 4 | F12: 6 | G12: 1 | H12: 1 | I12: 5 | J12: 5 | K12: 1 | L12: 1 | M12: 6 | N12: 4 | O12: 1 | P12: 2 | Q12: 3 | R12: 6 | S12: 1 | T12: 2 | U12: 4 | V12: 5 | W12: 1 | X12: 2 | Y12: 5 | Z12: 4 | AA12: 1 | AB12: 2 | AC12: 6 | AD12: 3 | AE12: 1 | AF12: 3 | AG12: 2 | AH12: 6 | AI12: 1 | AJ12: 3 | AK12: 3 | AL12: 5 | AM12: 1 | AN12: 3 | AO12: 4 | AP12: 4 | AQ12: 1 | AR12: 3 | AS12: 5 | AT12: 3 | AU12: 1 | AV12: 3 | AW12: 6 | AX12: 2 | AY12: 1 | AZ12: 4 | BA12: 1 | BB12: 6 | BC12: 1 | BD12: 4 | BE12: 2 | BF12: 5 | BG12: 1 | BH12: 4 | BI12: 3 | BJ12: 4 | BK12: 1 | BL12: 4 | BM12: 4 | BN12: 3 | BO12: 1 | BP12: 4 | BQ12: 5 | BR12: 2 | BS12: 1 | BT12: 4 | BU12: 6 | BV12: 1 | BW12: 1 | BX12: 5 | BY12: 1 | BZ12: 5 | CA12: 1 | CB12: 5 | CC12: 2 | CD12: 4 | CE12: 1 | CF12: 5 | CG12: 3 | CH12: 3 | CI12: 1 | CJ12: 5 | CK12: 4 | CL12: 2 | CM12: 1 | CN12: 5 | CO12: 5 | CP12: 1 | CQ12: 1 | CR12: 6 | CS12: 1 | CT12: 4 | CU12: 1 | CV12: 6 | CW12: 2 | CX12: 3 | CY12: 1 | CZ12: 6 | DA12: 3 | DB12: 2 | DC12: 1 | DD12: 6 | DE12: 4 | DF12: 1 | DG12: 2 | DH12: 1 | DI12: 3 | DJ12: 6 | DK12: 2 | DL12: 1 | DM12: 4 | DN12: 5 | DO12: 2 | DP12: 1 | DQ12: 5 | DR12: 4 | DS12: 2 | DT12: 1 | DU12: 6 | DV12: 3 | DW12: 2 | DX12: 2 | DY12: 2 | DZ12: 6 | EA12: 2 | EB12: 2 | EC12: 3 | ED12: 5 | EE12: 2 | EF12: 2 | EG12: 4 | EH12: 4 | EI12: 2 | EJ12: 2 | EK12: 5 | EL12: 3 | EM12: 2 | EN12: 2 | EO12: 6 | EP12: 2 | EQ12: 2 | ER12: 3 | ES12: 1 | ET12: 6 | EU12: 2 | EV12: 3 | EW12: 2 | EX12: 5 | EY12: 2 | EZ12: 3 | FA12: 3 | FB12: 4 | FC12: 2 | FD12: 3 | FE12: 4 | FF12: 3 | FG12: 2 | FH12: 3 | FI12: 5 | FJ12: 2 | FK12: 2 | FL12: 3 | FM12: 6 | FN12: 1 | FO12: 2 | FP12: 4 | FQ12: 1 | FR12: 5 | FS12: 2 | FT12: 4 | FU12: 2 | FV12: 4 | FW12: 2 | FX12: 4 | FY12: 3 | FZ12: 3 | GA12: 2 | GB12: 4 | GC12: 4 | GD12: 2 | GE12: 2 | GF12: 4 | GG12: 5 | GH12: 1 | GI12: 2 | GJ12: 5 | GK12: 1 | GL12: 4 | GM12: 2 | GN12: 5 | GO12: 2 | GP12: 3 | GQ12: 2 | GR12: 5 | GS12: 3 | GT12: 2 | GU12: 2 | GV12: 5 | GW12: 4 | GX12: 1 | GY12: 2 | GZ12: 6 | HA12: 1 | HB12: 3 | HC12: 2 | HD12: 6 | HE12: 2 | HF12: 2 | HG12: 2 | HH12: 6 | HI12: 3 | HJ12: 1 | HK12: 3 | HL12: 1 | HM12: 2 | HN12: 6 | HO12: 3 | HP12: 1 | HQ12: 3 | HR12: 5 | HS12: 3 | HT12: 1 | HU12: 4 | HV12: 4 | HW12: 3 | HX12: 1 | HY12: 5 | HZ12: 3 | IA12: 3 | IB12: 1 | IC12: 6 | ID12: 2 | IE12: 3 | IF12: 2 | IG12: 1 | IH12: 6 | II12: 3 | IJ12: 2 | IK12: 2 | IL12: 5 | IM12: 3 | IN12: 2 | IO12: 3 | IP12: 4 | IQ12: 3 | IR12: 2 | IS12: 4 | IT12: 3 | IU12: 3 | IV12: 2 | IW12: 5 | IX12: 2 | IY12: 3 | IZ12: 2 | JA12: 6 | JB12: 1 | JC12: 3 | JD12: 3 | JE12: 1 | JF12: 5 | JG12: 3 | JH12: 3 | JI12: 2 | JJ12: 4 | JK12: 3 | JL12: 3 | JM12: 3 | JN12: 3 | JO12: 3 | JP12: 3 | JQ12: 4 | JR12: 2 | JS12: 3 | JT12: 3 | JU12: 5 | JV12: 1 | JW12: 3 | JX12: 4 | JY12: 1 | JZ12: 4 | KA12: 3 | KB12: 4 | KC12: 2 | KD12: 3 | KE12: 3 | KF12: 4 | KG12: 3 | KH12: 2 | KI12: 3 | KJ12: 4 | KK12: 4 | KL12: 1 | KM12: 3 | KN12: 5 | KO12: 1 | KP12: 3 | KQ12: 3 | KR12: 5 | KS12: 2 | KT12: 2 | KU12: 3 | KV12: 5 | KW12: 3 | KX12: 1 | KY12: 3 | KZ12: 6 | LA12: 1 | LB12: 2 | LC12: 3 | LD12: 6 | LE12: 2 | LF12: 1 | LG12: 4 | LH12: 1 | LI12: 1 | LJ12: 6 | LK12: 4 | LL12: 1 | LM12: 2 | LN12: 5 | LO12: 4 | LP12: 1 | LQ12: 3 | LR12: 4 | LS12: 4 | LT12: 1 | LU12: 4 | LV12: 3 | LW12: 4 | LX12: 1 | LY12: 5 | LZ12: 2 | MA12: 4 | MB12: 1 | MC12: 6 | MD12: 1 | ME12: 4 | MF12: 2 | MG12: 1 | MH12: 5 | MI12: 4 | MJ12: 2 | MK12: 2 | ML12: 4 | MM12: 4 | MN12: 2 | MO12: 3 | MP12: 3 | MQ12: 4 | MR12: 2 | MS12: 4 | MT12: 2 | MU12: 4 | MV12: 2 | MW12: 5 | MX12: 1 | MY12: 4 | MZ12: 3 | NA12: 1 | NB12: 4 | NC12: 4 | ND12: 3 | NE12: 2 | NF12: 3 | NG12: 4 | NH12: 3 | NI12: 3 | NJ12: 2 | NK12: 4 | NL12: 3 | NM12: 4 | NN12: 1 | NO12: 4 | NP12: 4 | NQ12: 1 | NR12: 3 | NS12: 4 | NT12: 4 | NU12: 2 | NV12: 2 | NW12: 4 | NX12: 4 | NY12: 3 | NZ12: 1 | OA12: 4 | OB12: 5 | OC12: 1 | OD12: 2 | OE12: 4 | OF12: 5 | OG12: 2 | OH12: 1 | OI12: 4 | OJ12: 6 | OK12: 1 | OL12: 1 | OM12: 5 | ON12: 1 | OO12: 1 | OP12: 5 | OQ12: 5 | OR12: 1 | OS12: 2 | OT12: 4 | OU12: 5 | OV12: 1 | OW12: 3 | OX12: 3 | OY12: 5 | OZ12: 1 | PA12: 4 | PB12: 2 | PC12: 5 | PD12: 1 | PE12: 5 | PF12: 1 | PG12: 5 | PH12: 2 | PI12: 1 | PJ12: 4 | PK12: 5 | PL12: 2 | PM12: 2 | PN12: 3 | PO12: 5 | PP12: 2 | PQ12: 3 | PR12: 2 | PS12: 5 | PT12: 2 | PU12: 4 | PV12: 1 | PW12: 5 | PX12: 3 | PY12: 1 | PZ12: 3 | QA12: 5 | QB12: 3 | QC12: 2 | QD12: 2 | QE12: 5 | QF12: 3 | QG12: 3 | QH12: 1 | QI12: 5 | QJ12: 4 | QK12: 1 | QL12: 2 | QM12: 5 | QN12: 4 | QO12: 2 | QP12: 1 | QQ12: 5 | QR12: 5 | QS12: 1 | QT12: 1 | QU12: 6 | QV12: 1 | QW12: 1 | QX12: 4 | QY12: 6 | QZ12: 1 | RA12: 2 | RB12: 3 | RC12: 6 | RD12: 1 | RE12: 3 | RF12: 2 | RG12: 6 | RH12: 1 | RI12: 4 | RJ12: 1 | RK12: 6 | RL12: 2 | RM12: 1 | RN12: 3 | RO12: 6 | RP12: 2 | RQ12: 2 | RR12: 2 | RS12: 6 | RT12: 2 | RU12: 3 | RV12: 1 | RW12: 6 | RX12: 3 | RY12: 1 | RZ12: 2 | SA12: 6 | SB12: 3 | SC12: 2 | SD12: 1 | SE12: 6 | SF12: 4 | SG12: 1 | SH12: 1
B13: 13 | C13: 1 | D13: 1 | E13: 5 | F13: 6 | G13: 1 | H13: 1 | I13: 6 | J13: 5 | K13: 1 | L13: 2 | M13: 4 | N13: 6 | O13: 1 | P13: 2 | Q13: 5 | R13: 5 | S13: 1 | T13: 2 | U13: 6 | V13: 4 | W13: 1 | X13: 3 | Y13: 3 | Z13: 6 | AA13: 1 | AB13: 3 | AC13: 4 | AD13: 5 | AE13: 1 | AF13: 3 | AG13: 5 | AH13: 4 | AI13: 1 | AJ13: 3 | AK13: 6 | AL13: 3 | AM13: 1 | AN13: 4 | AO13: 2 | AP13: 6 | AQ13: 1 | AR13: 4 | AS13: 3 | AT13: 5 | AU13: 1 | AV13: 4 | AW13: 4 | AX13: 4 | AY13: 1 | AZ13: 4 | BA13: 5 | BB13: 3 | BC13: 1 | BD13: 4 | BE13: 6 | BF13: 2 | BG13: 1 | BH13: 5 | BI13: 1 | BJ13: 6 | BK13: 1 | BL13: 5 | BM13: 2 | BN13: 5 | BO13: 1 | BP13: 5 | BQ13: 3 | BR13: 4 | BS13: 1 | BT13: 5 | BU13: 4 | BV13: 3 | BW13: 1 | BX13: 5 | BY13: 5 | BZ13: 2 | CA13: 1 | CB13: 5 | CC13: 6 | CD13: 1 | CE13: 1 | CF13: 6 | CG13: 1 | CH13: 5 | CI13: 1 | CJ13: 6 | CK13: 2 | CL13: 4 | CM13: 1 | CN13: 6 | CO13: 3 | CP13: 3 | CQ13: 1 | CR13: 6 | CS13: 4 | CT13: 2 | CU13: 1 | CV13: 6 | CW13: 5 | CX13: 1 | CY13: 2 | CZ13: 1 | DA13: 4 | DB13: 6 | DC13: 2 | DD13: 1 | DE13: 5 | DF13: 5 | DG13: 2 | DH13: 1 | DI13: 6 | DJ13: 4 | DK13: 2 | DL13: 2 | DM13: 3 | DN13: 6 | DO13: 2 | DP13: 2 | DQ13: 4 | DR13: 5 | DS13: 2 | DT13: 2 | DU13: 5 | DV13: 4 | DW13: 2 | DX13: 2 | DY13: 6 | DZ13: 3 | EA13: 2 | EB13: 3 | EC13: 2 | ED13: 6 | EE13: 2 | EF13: 3 | EG13: 3 | EH13: 5 | EI13: 2 | EJ13: 3 | EK13: 4 | EL13: 4 | EM13: 2 | EN13: 3 | EO13: 5 | EP13: 3 | EQ13: 2 | ER13: 3 | ES13: 6 | ET13: 2 | EU13: 2 | EV13: 4 | EW13: 1 | EX13: 6 | EY13: 2 | EZ13: 4 | FA13: 2 | FB13: 5 | FC13: 2 | FD13: 4 | FE13: 3 | FF13: 4 | FG13: 2 | FH13: 4 | FI13: 4 | FJ13: 3 | FK13: 2 | FL13: 4 | FM13: 5 | FN13: 2 | FO13: 2 | FP13: 4 | FQ13: 6 | FR13: 1 | FS13: 2 | FT13: 5 | FU13: 1 | FV13: 5 | FW13: 2 | FX13: 5 | FY13: 2 | FZ13: 4 | GA13: 2 | GB13: 5 | GC13: 3 | GD13: 3 | GE13: 2 | GF13: 5 | GG13: 4 | GH13: 2 | GI13: 2 | GJ13: 5 | GK13: 5 | GL13: 1 | GM13: 2 | GN13: 6 | GO13: 1 | GP13: 4 | GQ13: 2 | GR13: 6 | GS13: 2 | GT13: 3 | GU13: 2 | GV13: 6 | GW13: 3 | GX13: 2 | GY13: 2 | GZ13: 6 | HA13: 4 | HB13: 1 | HC13: 3 | HD13: 1 | HE13: 3 | HF13: 6 | HG13: 3 | HH13: 1 | HI13: 4 | HJ13: 5 | HK13: 3 | HL13: 1 | HM13: 5 | HN13: 4 | HO13: 3 | HP13: 1 | HQ13: 6 | HR13: 3 | HS13: 3 | HT13: 2 | HU13: 2 | HV13: 6 | HW13: 3 | HX13: 2 | HY13: 3 | HZ13: 5 | IA13: 3 | IB13: 2 | IC13: 4 | ID13: 4 | IE13: 3 | IF13: 2 | IG13: 5 | IH13: 3 | II13: 3 | IJ13: 2 | IK13: 6 | IL13: 2 | IM13: 3 | IN13: 3 | IO13: 1 | IP13: 6 | IQ13: 3 | IR13: 3 | IS13: 2 | IT13: 5 | IU13: 3 | IV13: 3 | IW13: 3 | IX13: 4 | IY13: 3 | IZ13: 3 | JA13: 4 | JB13: 3 | JC13: 3 | JD13: 3 | JE13: 5 | JF13: 2 | JG13: 3 | JH13: 3 | JI13: 6 | JJ13: 1 | JK13: 3 | JL13: 4 | JM13: 1 | JN13: 5 | JO13: 3 | JP13: 4 | JQ13: 2 | JR13: 4 | JS13: 3 | JT13: 4 | JU13: 3 | JV13: 3 | JW13: 3 | JX13: 4 | JY13: 4 | JZ13: 2 | KA13: 3 | KB13: 4 | KC13: 5 | KD13: 1 | KE13: 3 | KF13: 5 | KG13: 1 | KH13: 4 | KI13: 3 | KJ13: 5 | KK13: 2 | KL13: 3 | KM13: 3 | KN13: 5 | KO13: 3 | KP13: 2 | KQ13: 3 | KR13: 5 | KS13: 4 | KT13: 1 | KU13: 3 | KV13: 6 | KW13: 1 | KX13: 3 | KY13: 3 | KZ13: 6 | LA13: 2 | LB13: 2 | LC13: 3 | LD13: 6 | LE13: 3 | LF13: 1 | LG13: 4 | LH13: 1 | LI13: 2 | LJ13: 6 | LK13: 4 | LL13: 1 | LM13: 3 | LN13: 5 | LO13: 4 | LP13: 1 | LQ13: 4 | LR13: 4 | LS13: 4 | LT13: 1 | LU13: 5 | LV13: 3 | LW13: 4 | LX13: 1 | LY13: 6 | LZ13: 2 | MA13: 4 | MB13: 2 | MC13: 1 | MD13: 6 | ME13: 4 | MF13: 2 | MG13: 2 | MH13: 5 | MI13: 4 | MJ13: 2 | MK13: 3 | ML13: 4 | MM13: 4 | MN13: 2 | MO13: 4 | MP13: 3 | MQ13: 4 | MR13: 2 | MS13: 5 | MT13: 2 | MU13: 4 | MV13: 2 | MW13: 6 | MX13: 1 | MY13: 4 | MZ13: 3 | NA13: 1 | NB13: 5 | NC13: 4 | ND13: 3 | NE13: 2 | NF13: 4 | NG13: 4 | NH13: 3 | NI13: 3 | NJ13: 3 | NK13: 4 | NL13: 3 | NM13: 4 | NN13: 2 | NO13: 4 | NP13: 3 | NQ13: 5 | NR13: 1 | NS13: 4 | NT13: 4 | NU13: 1 | NV13: 4 | NW13: 4 | NX13: 4 | NY13: 2 | NZ13: 3 | OA13: 4 | OB13: 4 | OC13: 3 | OD13: 2 | OE13: 4 | OF13: 4 | OG13: 4 | OH13: 1 | OI13: 4 | OJ13: 5 | OK13: 1 | OL13: 3 | OM13: 4 | ON13: 5 | OO13: 2 | OP13: 2 | OQ13: 4 | OR13: 5 | OS13: 3 | OT13: 1 | OU13: 4 | OV13: 6 | OW13: 1 | OX13: 2 | OY13: 4 | OZ13: 6 | PA13: 2 | PB13: 1 | PC13: 5 | PD13: 1 | PE13: 1 | PF13: 6 | PG13: 5 | PH13: 1 | PI13: 2 | PJ13: 5 | PK13: 5 | PL13: 1 | PM13: 3 | PN13: 4 | PO13: 5 | PP13: 1 | PQ13: 4 | PR13: 3 | PS13: 5 | PT13: 1 | PU13: 5 | PV13: 2 | PW13: 5 | PX13: 1 | PY13: 6 | PZ13: 1 | QA13: 5 | QB13: 2 | QC13: 1 | QD13: 5 | QE13: 5 | QF13: 2 | QG13: 2 | QH13: 4 | QI13: 5 | QJ13: 2 | QK13: 3 | QL13: 3 | QM13: 5 | QN13: 2 | QO13: 4 | QP13: 2 | QQ13: 5 | QR13: 2 | QS13: 5 | QT13: 1 | QU13: 5 | QV13: 3 | QW13: 1 | QX13: 4 | QY13: 5 | QZ13: 3 | RA13: 2 | RB13: 3 | RC13: 5 | RD13: 3 | RE13: 3 | RF13: 2 | RG13: 5 | RH13: 3 | RI13: 4 | RJ13: 1 | RK13: 5 | RL13: 4 | RM13: 1 | RN13: 3 | RO13: 5 | RP13: 4 | RQ13: 2 | RR13: 2 | RS13: 5 | RT13: 4 | RU13: 3 | RV13: 1 | RW13: 5 | RX13: 5 | RY13: 1 | RZ13: 2 | SA13: 5 | SB13: 5 | SC13: 2 | SD13: 1 | SE13: 5 | SF13: 6 | SG13: 1 | SH13: 1 | SI13: 6 | SJ13: 1 | SK13: 1 | SL13: 5 | SM13: 6 | SN13: 1 | SO13: 2 | SP13: 4 | SQ13: 6 | SR13: 1 | SS13: 3 | ST13: 3 | SU13: 6 | SV13: 1 | SW13: 4 | SX13: 2 | SY13: 6 | SZ13: 1 | TA13: 5 | TB13: 1 | TC13: 6 | TD13: 2 | TE13: 1 | TF13: 4 | TG13: 6 | TH13: 2 | TI13: 2 | TJ13: 3 | TK13: 6 | TL13: 2 | TM13: 3 | TN13: 2 | TO13: 6 | TP13: 2 | TQ13: 4 | TR13: 1 | TS13: 6 | TT13: 3 | TU13: 1 | TV13: 3 | TW13: 6 | TX13: 3 | TY13: 2 | TZ13: 2 | UA13: 6 | UB13: 3 | UC13: 3 | UD13: 1 | UE13: 6 | UF13: 4 | UG13: 1 | UH13: 2 | UI13: 6 | UJ13: 4 | UK13: 2 | UL13: 1 | UM13: 6 | UN13: 5 | UO13: 1 | UP13: 1
B14: 14 | C14: 1 | D14: 1 | E14: 6 | F14: 6 | G14: 1 | H14: 2 | I14: 5 | J14: 6 | K14: 1 | L14: 2 | M14: 6 | N14: 5 | O14: 1 | P14: 3 | Q14: 4 | R14: 6 | S14: 1 | T14: 3 | U14: 5 | V14: 5 | W14: 1 | X14: 3 | Y14: 6 | Z14: 4 | AA14: 1 | AB14: 4 | AC14: 3 | AD14: 6 | AE14: 1 | AF14: 4 | AG14: 4 | AH14: 5 | AI14: 1 | AJ14: 4 | AK14: 5 | AL14: 4 | AM14: 1 | AN14: 4 | AO14: 6 | AP14: 3 | AQ14: 1 | AR14: 5 | AS14: 2 | AT14: 6 | AU14: 1 | AV14: 5 | AW14: 3 | AX14: 5 | AY14: 1 | AZ14: 5 | BA14: 4 | BB14: 4 | BC14: 1 | BD14: 5 | BE14: 5 | BF14: 3 | BG14: 1 | BH14: 5 | BI14: 6 | BJ14: 2 | BK14: 1 | BL14: 6 | BM14: 1 | BN14: 6 | BO14: 1 | BP14: 6 | BQ14: 2 | BR14: 5 | BS14: 1 | BT14: 6 | BU14: 3 | BV14: 4 | BW14: 1 | BX14: 6 | BY14: 4 | BZ14: 3 | CA14: 1 | CB14: 6 | CC14: 5 | CD14: 2 | CE14: 1 | CF14: 6 | CG14: 6 | CH14: 1 | CI14: 2 | CJ14: 1 | CK14: 5 | CL14: 6 | CM14: 2 | CN14: 1 | CO14: 6 | CP14: 5 | CQ14: 2 | CR14: 2 | CS14: 4 | CT14: 6 | CU14: 2 | CV14: 2 | CW14: 5 | CX14: 5 | CY14: 2 | CZ14: 2 | DA14: 6 | DB14: 4 | DC14: 2 | DD14: 3 | DE14: 3 | DF14: 6 | DG14: 2 | DH14: 3 | DI14: 4 | DJ14: 5 | DK14: 2 | DL14: 3 | DM14: 5 | DN14: 4 | DO14: 2 | DP14: 3 | DQ14: 6 | DR14: 3 | DS14: 2 | DT14: 4 | DU14: 2 | DV14: 6 | DW14: 2 | DX14: 4 | DY14: 3 | DZ14: 5 | EA14: 2 | EB14: 4 | EC14: 4 | ED14: 4 | EE14: 2 | EF14: 4 | EG14: 5 | EH14: 3 | EI14: 2 | EJ14: 4 | EK14: 6 | EL14: 2 | EM14: 2 | EN14: 5 | EO14: 1 | EP14: 6 | EQ14: 2 | ER14: 5 | ES14: 2 | ET14: 5 | EU14: 2 | EV14: 5 | EW14: 3 | EX14: 4 | EY14: 2 | EZ14: 5 | FA14: 4 | FB14: 3 | FC14: 2 | FD14: 5 | FE14: 5 | FF14: 2 | FG14: 2 | FH14: 5 | FI14: 6 | FJ14: 1 | FK14: 2 | FL14: 6 | FM14: 1 | FN14: 5 | FO14: 2 | FP14: 6 | FQ14: 2 | FR14: 4 | FS14: 2 | FT14: 6 | FU14: 3 | FV14: 3 | FW14: 2 | FX14: 6 | FY14: 4 | FZ14: 2 | GA14: 2 | GB14: 6 | GC14: 5 | GD14: 1 | GE14: 3 | GF14: 1 | GG14: 4 | GH14: 6 | GI14: 3 | GJ14: 1 | GK14: 5 | GL14: 5 | GM14: 3 | GN14: 1 | GO14: 6 | GP14: 4 | GQ14: 3 | GR14: 2 | GS14: 3 | GT14: 6 | GU14: 3 | GV14: 2 | GW14: 4 | GX14: 5 | GY14: 3 | GZ14: 2 | HA14: 5 | HB14: 4 | HC14: 3 | HD14: 2 | HE14: 6 | HF14: 3 | HG14: 3 | HH14: 3 | HI14: 2 | HJ14: 6 | HK14: 3 | HL14: 3 | HM14: 3 | HN14: 5 | HO14: 3 | HP14: 3 | HQ14: 4 | HR14: 4 | HS14: 3 | HT14: 3 | HU14: 5 | HV14: 3 | HW14: 3 | HX14: 3 | HY14: 6 | HZ14: 2 | IA14: 3 | IB14: 4 | IC14: 1 | ID14: 6 | IE14: 3 | IF14: 4 | IG14: 2 | IH14: 5 | II14: 3 | IJ14: 4 | IK14: 3 | IL14: 4 | IM14: 3 | IN14: 4 | IO14: 4 | IP14: 3 | IQ14: 3 | IR14: 4 | IS14: 5 | IT14: 2 | IU14: 3 | IV14: 4 | IW14: 6 | IX14: 1 | IY14: 3 | IZ14: 5 | JA14: 1 | JB14: 5 | JC14: 3 | JD14: 5 | JE14: 2 | JF14: 4 | JG14: 3 | JH14: 5 | JI14: 3 | JJ14: 3 | JK14: 3 | JL14: 5 | JM14: 4 | JN14: 2 | JO14: 3 | JP14: 5 | JQ14: 5 | JR14: 1 | JS14: 3 | JT14: 6 | JU14: 1 | JV14: 4 | JW14: 3 | JX14: 6 | JY14: 2 | JZ14: 3 | KA14: 3 | KB14: 6 | KC14: 3 | KD14: 2 | KE14: 3 | KF14: 6 | KG14: 4 | KH14: 1 | KI14: 4 | KJ14: 1 | KK14: 3 | KL14: 6 | KM14: 4 | KN14: 1 | KO14: 4 | KP14: 5 | KQ14: 4 | KR14: 1 | KS14: 5 | KT14: 4 | KU14: 4 | KV14: 1 | KW14: 6 | KX14: 3 | KY14: 4 | KZ14: 2 | LA14: 2 | LB14: 6 | LC14: 4 | LD14: 2 | LE14: 3 | LF14: 5 | LG14: 4 | LH14: 2 | LI14: 4 | LJ14: 4 | LK14: 4 | LL14: 2 | LM14: 5 | LN14: 3 | LO14: 4 | LP14: 2 | LQ14: 6 | LR14: 2 | LS14: 4 | LT14: 3 | LU14: 1 | LV14: 6 | LW14: 4 | LX14: 3 | LY14: 2 | LZ14: 5 | MA14: 4 | MB14: 3 | MC14: 3 | MD14: 4 | ME14: 4 | MF14: 3 | MG14: 4 | MH14: 3 | MI14: 4 | MJ14: 3 | MK14: 5 | ML14: 2 | MM14: 4 | MN14: 3 | MO14: 6 | MP14: 1 | MQ14: 4 | MR14: 4 | MS14: 1 | MT14: 5 | MU14: 4 | MV14: 4 | MW14: 2 | MX14: 4 | MY14: 4 | MZ14: 4 | NA14: 3 | NB14: 3 | NC14: 4 | ND14: 4 | NE14: 4 | NF14: 2 | NG14: 4 | NH14: 4 | NI14: 5 | NJ14: 1 | NK14: 4 | NL14: 5 | NM14: 1 | NN14: 4 | NO14: 4 | NP14: 5 | NQ14: 2 | NR14: 3 | NS14: 4 | NT14: 5 | NU14: 3 | NV14: 2 | NW14: 4 | NX14: 5 | NY14: 4 | NZ14: 1 | OA14: 4 | OB14: 6 | OC14: 1 | OD14: 3 | OE14: 4 | OF14: 6 | OG14: 2 | OH14: 2 | OI14: 4 | OJ14: 6 | OK14: 3 | OL14: 1 | OM14: 5 | ON14: 1 | OO14: 2 | OP14: 6 | OQ14: 5 | OR14: 1 | OS14: 3 | OT14: 5 | OU14: 5 | OV14: 1 | OW14: 4 | OX14: 4 | OY14: 5 | OZ14: 1 | PA14: 5 | PB14: 3 | PC14: 5 | PD14: 1 | PE14: 6 | PF14: 2 | PG14: 5 | PH14: 2 | PI14: 1 | PJ14: 6 | PK14: 5 | PL14: 2 | PM14: 2 | PN14: 5 | PO14: 5 | PP14: 2 | PQ14: 3 | PR14: 4 | PS14: 5 | PT14: 2 | PU14: 4 | PV14: 3 | PW14: 5 | PX14: 2 | PY14: 5 | PZ14: 2 | QA14: 5 | QB14: 2 | QC14: 6 | QD14: 1 | QE14: 5 | QF14: 3 | QG14: 1 | QH14: 5 | QI14: 5 | QJ14: 3 | QK14: 2 | QL14: 4 | QM14: 5 | QN14: 3 | QO14: 3 | QP14: 3 | QQ14: 5 | QR14: 3 | QS14: 4 | QT14: 2 | QU14: 5 | QV14: 3 | QW14: 5 | QX14: 1 | QY14: 5 | QZ14: 4 | RA14: 1 | RB14: 4 | RC14: 5 | RD14: 4 | RE14: 2 | RF14: 3 | RG14: 5 | RH14: 4 | RI14: 3 | RJ14: 2 | RK14: 5 | RL14: 4 | RM14: 4 | RN14: 1 | RO14: 5 | RP14: 5 | RQ14: 1 | RR14: 3 | RS14: 5 | RT14: 5 | RU14: 2 | RV14: 2 | RW14: 5 | RX14: 5 | RY14: 3 | RZ14: 1 | SA14: 5 | SB14: 6 | SC14: 1 | SD14: 2 | SE14: 5 | SF14: 6 | SG14: 2 | SH14: 1 | SI14: 6 | SJ14: 1 | SK14: 1 | SL14: 6 | SM14: 6 | SN14: 1 | SO14: 2 | SP14: 5 | SQ14: 6 | SR14: 1 | SS14: 3 | ST14: 4 | SU14: 6 | SV14: 1 | SW14: 4 | SX14: 3 | SY14: 6 | SZ14: 1 | TA14: 5 | TB14: 2 | TC14: 6 | TD14: 1 | TE14: 6 | TF14: 1 | TG14: 6 | TH14: 2 | TI14: 1 | TJ14: 5 | TK14: 6 | TL14: 2 | TM14: 2 | TN14: 4 | TO14: 6 | TP14: 2 | TQ14: 3 | TR14: 3 | TS14: 6 | TT14: 2 | TU14: 4 | TV14: 2 | TW14: 6 | TX14: 2 | TY14: 5 | TZ14: 1 | UA14: 6 | UB14: 3 | UC14: 1 | UD14: 4 | UE14: 6 | UF14: 3 | UG14: 2 | UH14: 3 | UI14: 6 | UJ14: 3 | UK14: 3 | UL14: 2 | UM14: 6 | UN14: 3 | UO14: 4 | UP14: 1 | UQ14: 6 | UR14: 4 | US14: 1 | UT14: 3 | UU14: 6 | UV14: 4 | UW14: 2 | UX14: 2 | UY14: 6 | UZ14: 4 | VA14: 3 | VB14: 1 | VC14: 6 | VD14: 5 | VE14: 1 | VF14: 2 | VG14: 6 | VH14: 5 | VI14: 2 | VJ14: 1 | VK14: 6 | VL14: 6 | VM14: 1 | VN14: 1
B15: 15 | C15: 1 | D15: 2 | E15: 6 | F15: 6 | G15: 1 | H15: 3 | I15: 5 | J15: 6 | K15: 1 | L15: 3 | M15: 6 | N15: 5 | O15: 1 | P15: 4 | Q15: 4 | R15: 6 | S15: 1 | T15: 4 | U15: 5 | V15: 5 | W15: 1 | X15: 4 | Y15: 6 | Z15: 4 | AA15: 1 | AB15: 5 | AC15: 3 | AD15: 6 | AE15: 1 | AF15: 5 | AG15: 4 | AH15: 5 | AI15: 1 | AJ15: 5 | AK15: 5 | AL15: 4 | AM15: 1 | AN15: 5 | AO15: 6 | AP15: 3 | AQ15: 1 | AR15: 6 | AS15: 2 | AT15: 6 | AU15: 1 | AV15: 6 | AW15: 3 | AX15: 5 | AY15: 1 | AZ15: 6 | BA15: 4 | BB15: 4 | BC15: 1 | BD15: 6 | BE15: 5 | BF15: 3 | BG15: 1 | BH15: 6 | BI15: 6 | BJ15: 2 | BK15: 2 | BL15: 1 | BM15: 6 | BN15: 6 | BO15: 2 | BP15: 2 | BQ15: 5 | BR15: 6 | BS15: 2 | BT15: 2 | BU15: 6 | BV15: 5 | BW15: 2 | BX15: 3 | BY15: 4 | BZ15: 6 | CA15: 2 | CB15: 3 | CC15: 5 | CD15: 5 | CE15: 2 | CF15: 3 | CG15: 6 | CH15: 4 | CI15: 2 | CJ15: 4 | CK15: 3 | CL15: 6 | CM15: 2 | CN15: 4 | CO15: 4 | CP15: 5 | CQ15: 2 | CR15: 4 | CS15: 5 | CT15: 4 | CU15: 2 | CV15: 4 | CW15: 6 | CX15: 3 | CY15: 2 | CZ15: 5 | DA15: 2 | DB15: 6 | DC15: 2 | DD15: 5 | DE15: 3 | DF15: 5 | DG15: 2 | DH15: 5 | DI15: 4 | DJ15: 4 | DK15: 2 | DL15: 5 | DM15: 5 | DN15: 3 | DO15: 2 | DP15: 5 | DQ15: 6 | DR15: 2 | DS15: 2 | DT15: 6 | DU15: 1 | DV15: 6 | DW15: 2 | DX15: 6 | DY15: 2 | DZ15: 5 | EA15: 2 | EB15: 6 | EC15: 3 | ED15: 4 | EE15: 2 | EF15: 6 | EG15: 4 | EH15: 3 | EI15: 2 | EJ15: 6 | EK15: 5 | EL15: 2 | EM15: 2 | EN15: 6 | EO15: 6 | EP15: 1 | EQ15: 3 | ER15: 1 | ES15: 5 | ET15: 6 | EU15: 3 | EV15: 1 | EW15: 6 | EX15: 5 | EY15: 3 | EZ15: 2 | FA15: 4 | FB15: 6 | FC15: 3 | FD15: 2 | FE15: 5 | FF15: 5 | FG15: 3 | FH15: 2 | FI15: 6 | FJ15: 4 | FK15: 3 | FL15: 3 | FM15: 3 | FN15: 6 | FO15: 3 | FP15: 3 | FQ15: 4 | FR15: 5 | FS15: 3 | FT15: 3 | FU15: 5 | FV15: 4 | FW15: 3 | FX15: 3 | FY15: 6 | FZ15: 3 | GA15: 3 | GB15: 4 | GC15: 2 | GD15: 6 | GE15: 3 | GF15: 4 | GG15: 3 | GH15: 5 | GI15: 3 | GJ15: 4 | GK15: 4 | GL15: 4 | GM15: 3 | GN15: 4 | GO15: 5 | GP15: 3 | GQ15: 3 | GR15: 4 | GS15: 6 | GT15: 2 | GU15: 3 | GV15: 5 | GW15: 1 | GX15: 6 | GY15: 3 | GZ15: 5 | HA15: 2 | HB15: 5 | HC15: 3 | HD15: 5 | HE15: 3 | HF15: 4 | HG15: 3 | HH15: 5 | HI15: 4 | HJ15: 3 | HK15: 3 | HL15: 5 | HM15: 5 | HN15: 2 | HO15: 3 | HP15: 5 | HQ15: 6 | HR15: 1 | HS15: 3 | HT15: 6 | HU15: 1 | HV15: 5 | HW15: 3 | HX15: 6 | HY15: 2 | HZ15: 4 | IA15: 3 | IB15: 6 | IC15: 3 | ID15: 3 | IE15: 3 | IF15: 6 | IG15: 4 | IH15: 2 | II15: 3 | IJ15: 6 | IK15: 5 | IL15: 1 | IM15: 4 | IN15: 1 | IO15: 4 | IP15: 6 | IQ15: 4 | IR15: 1 | IS15: 5 | IT15: 5 | IU15: 4 | IV15: 1 | IW15: 6 | IX15: 4 | IY15: 4 | IZ15: 2 | JA15: 3 | JB15: 6 | JC15: 4 | JD15: 2 | JE15: 4 | JF15: 5 | JG15: 4 | JH15: 2 | JI15: 5 | JJ15: 4 | JK15: 4 | JL15: 2 | JM15: 6 | JN15: 3 | JO15: 4 | JP15: 3 | JQ15: 2 | JR15: 6 | JS15: 4 | JT15: 3 | JU15: 3 | JV15: 5 | JW15: 4 | JX15: 3 | JY15: 4 | JZ15: 4 | KA15: 4 | KB15: 3 | KC15: 5 | KD15: 3 | KE15: 4 | KF15: 3 | KG15: 6 | KH15: 2 | KI15: 4 | KJ15: 4 | KK15: 1 | KL15: 6 | KM15: 4 | KN15: 4 | KO15: 2 | KP15: 5 | KQ15: 4 | KR15: 4 | KS15: 3 | KT15: 4 | KU15: 4 | KV15: 4 | KW15: 4 | KX15: 3 | KY15: 4 | KZ15: 4 | LA15: 5 | LB15: 2 | LC15: 4 | LD15: 4 | LE15: 6 | LF15: 1 | LG15: 4 | LH15: 5 | LI15: 1 | LJ15: 5 | LK15: 4 | LL15: 5 | LM15: 2 | LN15: 4 | LO15: 4 | LP15: 5 | LQ15: 3 | LR15: 3 | LS15: 4 | LT15: 5 | LU15: 4 | LV15: 2 | LW15: 4 | LX15: 5 | LY15: 5 | LZ15: 1 | MA15: 4 | MB15: 6 | MC15: 1 | MD15: 4 | ME15: 4 | MF15: 6 | MG15: 2 | MH15: 3 | MI15: 4 | MJ15: 6 | MK15: 3 | ML15: 2 | MM15: 4 | MN15: 6 | MO15: 4 | MP15: 1 | MQ15: 5 | MR15: 1 | MS15: 3 | MT15: 6 | MU15: 5 | MV15: 1 | MW15: 4 | MX15: 5 | MY15: 5 | MZ15: 1 | NA15: 5 | NB15: 4 | NC15: 5 | ND15: 1 | NE15: 6 | NF15: 3 | NG15: 5 | NH15: 2 | NI15: 2 | NJ15: 6 | NK15: 5 | NL15: 2 | NM15: 3 | NN15: 5 | NO15: 5 | NP15: 2 | NQ15: 4 | NR15: 4 | NS15: 5 | NT15: 2 | NU15: 5 | NV15: 3 | NW15: 5 | NX15: 2 | NY15: 6 | NZ15: 2 | OA15: 5 | OB15: 3 | OC15: 1 | OD15: 6 | OE15: 5 | OF15: 3 | OG15: 2 | OH15: 5 | OI15: 5 | OJ15: 3 | OK15: 3 | OL15: 4 | OM15: 5 | ON15: 3 | OO15: 4 | OP15: 3 | OQ15: 5 | OR15: 3 | OS15: 5 | OT15: 2 | OU15: 5 | OV15: 3 | OW15: 6 | OX15: 1 | OY15: 5 | OZ15: 4 | PA15: 1 | PB15: 5 | PC15: 5 | PD15: 4 | PE15: 2 | PF15: 4 | PG15: 5 | PH15: 4 | PI15: 3 | PJ15: 3 | PK15: 5 | PL15: 4 | PM15: 4 | PN15: 2 | PO15: 5 | PP15: 4 | PQ15: 5 | PR15: 1 | PS15: 5 | PT15: 5 | PU15: 1 | PV15: 4 | PW15: 5 | PX15: 5 | PY15: 2 | PZ15: 3 | QA15: 5 | QB15: 5 | QC15: 3 | QD15: 2 | QE15: 5 | QF15: 5 | QG15: 4 | QH15: 1 | QI15: 5 | QJ15: 6 | QK15: 1 | QL15: 3 | QM15: 5 | QN15: 6 | QO15: 2 | QP15: 2 | QQ15: 5 | QR15: 6 | QS15: 3 | QT15: 1 | QU15: 6 | QV15: 1 | QW15: 2 | QX15: 6 | QY15: 6 | QZ15: 1 | RA15: 3 | RB15: 5 | RC15: 6 | RD15: 1 | RE15: 4 | RF15: 4 | RG15: 6 | RH15: 1 | RI15: 5 | RJ15: 3 | RK15: 6 | RL15: 1 | RM15: 6 | RN15: 2 | RO15: 6 | RP15: 2 | RQ15: 1 | RR15: 6 | RS15: 6 | RT15: 2 | RU15: 2 | RV15: 5 | RW15: 6 | RX15: 2 | RY15: 3 | RZ15: 4 | SA15: 6 | SB15: 2 | SC15: 4 | SD15: 3 | SE15: 6 | SF15: 2 | SG15: 5 | SH15: 2 | SI15: 6 | SJ15: 2 | SK15: 6 | SL15: 1 | SM15: 6 | SN15: 3 | SO15: 1 | SP15: 5 | SQ15: 6 | SR15: 3 | SS15: 2 | ST15: 4 | SU15: 6 | SV15: 3 | SW15: 3 | SX15: 3 | SY15: 6 | SZ15: 3 | TA15: 4 | TB15: 2 | TC15: 6 | TD15: 3 | TE15: 5 | TF15: 1 | TG15: 6 | TH15: 4 | TI15: 1 | TJ15: 4 | TK15: 6 | TL15: 4 | TM15: 2 | TN15: 3 | TO15: 6 | TP15: 4 | TQ15: 3 | TR15: 2 | TS15: 6 | TT15: 4 | TU15: 4 | TV15: 1 | TW15: 6 | TX15: 5 | TY15: 1 | TZ15: 3 | UA15: 6 | UB15: 5 | UC15: 2 | UD15: 2 | UE15: 6 | UF15: 5 | UG15: 3 | UH15: 1 | UI15: 6 | UJ15: 6 | UK15: 1 | UL15: 2 | UM15: 6 | UN15: 6 | UO15: 2 | UP15: 1
B16: 16 | C16: 1 | D16: 3 | E16: 6 | F16: 6 | G16: 1 | H16: 4 | I16: 5 | J16: 6 | K16: 1 | L16: 4 | M16: 6 | N16: 5 | O16: 1 | P16: 5 | Q16: 4 | R16: 6 | S16: 1 | T16: 5 | U16: 5 | V16: 5 | W16: 1 | X16: 5 | Y16: 6 | Z16: 4 | AA16: 1 | AB16: 6 | AC16: 3 | AD16: 6 | AE16: 1 | AF16: 6 | AG16: 4 | AH16: 5 | AI16: 1 | AJ16: 6 | AK16: 5 | AL16: 4 | AM16: 1 | AN16: 6 | AO16: 6 | AP16: 3 | AQ16: 2 | AR16: 2 | AS16: 6 | AT16: 6 | AU16: 2 | AV16: 3 | AW16: 5 | AX16: 6 | AY16: 2 | AZ16: 3 | BA16: 6 | BB16: 5 | BC16: 2 | BD16: 4 | BE16: 4 | BF16: 6 | BG16: 2 | BH16: 4 | BI16: 5 | BJ16: 5 | BK16: 2 | BL16: 4 | BM16: 6 | BN16: 4 | BO16: 2 | BP16: 5 | BQ16: 3 | BR16: 6 | BS16: 2 | BT16: 5 | BU16: 4 | BV16: 5 | BW16: 2 | BX16: 5 | BY16: 5 | BZ16: 4 | CA16: 2 | CB16: 5 | CC16: 6 | CD16: 3 | CE16: 2 | CF16: 6 | CG16: 2 | CH16: 6 | CI16: 2 | CJ16: 6 | CK16: 3 | CL16: 5 | CM16: 2 | CN16: 6 | CO16: 4 | CP16: 4 | CQ16: 2 | CR16: 6 | CS16: 5 | CT16: 3 | CU16: 2 | CV16: 6 | CW16: 6 | CX16: 2 | CY16: 3 | CZ16: 1 | DA16: 6 | DB16: 6 | DC16: 3 | DD16: 2 | DE16: 5 | DF16: 6 | DG16: 3 | DH16: 2 | DI16: 6 | DJ16: 5 | DK16: 3 | DL16: 3 | DM16: 4 | DN16: 6 | DO16: 3 | DP16: 3 | DQ16: 5 | DR16: 5 | DS16: 3 | DT16: 3 | DU16: 6 | DV16: 4 | DW16: 3 | DX16: 4 | DY16: 3 | DZ16: 6 | EA16: 3 | EB16: 4 | EC16: 4 | ED16: 5 | EE16: 3 | EF16: 4 | EG16: 5 | EH16: 4 | EI16: 3 | EJ16: 4 | EK16: 6 | EL16: 3 | EM16: 3 | EN16: 5 | EO16: 2 | EP16: 6 | EQ16: 3 | ER16: 5 | ES16: 3 | ET16: 5 | EU16: 3 | EV16: 5 | EW16: 4 | EX16: 4 | EY16: 3 | EZ16: 5 | FA16: 5 | FB16: 3 | FC16: 3 | FD16: 5 | FE16: 6 | FF16: 2 | FG16: 3 | FH16: 6 | FI16: 1 | FJ16: 6 | FK16: 3 | FL16: 6 | FM16: 2 | FN16: 5 | FO16: 3 | FP16: 6 | FQ16: 3 | FR16: 4 | FS16: 3 | FT16: 6 | FU16: 4 | FV16: 3 | FW16: 3 | FX16: 6 | FY16: 5 | FZ16: 2 | GA16: 3 | GB16: 6 | GC16: 6 | GD16: 1 | GE16: 4 | GF16: 1 | GG16: 5 | GH16: 6 | GI16: 4 | GJ16: 1 | GK16: 6 | GL16: 5 | GM16: 4 | GN16: 2 | GO16: 4 | GP16: 6 | GQ16: 4 | GR16: 2 | GS16: 5 | GT16: 5 | GU16: 4 | GV16: 2 | GW16: 6 | GX16: 4 | GY16: 4 | GZ16: 3 | HA16: 3 | HB16: 6 | HC16: 4 | HD16: 3 | HE16: 4 | HF16: 5 | HG16: 4 | HH16: 3 | HI16: 5 | HJ16: 4 | HK16: 4 | HL16: 3 | HM16: 6 | HN16: 3 | HO16: 4 | HP16: 4 | HQ16: 2 | HR16: 6 | HS16: 4 | HT16: 4 | HU16: 3 | HV16: 5 | HW16: 4 | HX16: 4 | HY16: 4 | HZ16: 4 | IA16: 4 | IB16: 4 | IC16: 5 | ID16: 3 | IE16: 4 | IF16: 4 | IG16: 6 | IH16: 2 | II16: 4 | IJ16: 5 | IK16: 1 | IL16: 6 | IM16: 4 | IN16: 5 | IO16: 2 | IP16: 5 | IQ16: 4 | IR16: 5 | IS16: 3 | IT16: 4 | IU16: 4 | IV16: 5 | IW16: 4 | IX16: 3 | IY16: 4 | IZ16: 5 | JA16: 5 | JB16: 2 | JC16: 4 | JD16: 5 | JE16: 6 | JF16: 1 | JG16: 4 | JH16: 6 | JI16: 1 | JJ16: 5 | JK16: 4 | JL16: 6 | JM16: 2 | JN16: 4 | JO16: 4 | JP16: 6 | JQ16: 3 | JR16: 3 | JS16: 4 | JT16: 6 | JU16: 4 | JV16: 2 | JW16: 4 | JX16: 6 | JY16: 5 | JZ16: 1 | KA16: 5 | KB16: 1 | KC16: 4 | KD16: 6 | KE16: 5 | KF16: 1 | KG16: 5 | KH16: 5 | KI16: 5 | KJ16: 1 | KK16: 6 | KL16: 4 | KM16: 5 | KN16: 2 | KO16: 3 | KP16: 6 | KQ16: 5 | KR16: 2 | KS16: 4 | KT16: 5 | KU16: 5 | KV16: 2 | KW16: 5 | KX16: 4 | KY16: 5 | KZ16: 2 | LA16: 6 | LB16: 3 | LC16: 5 | LD16: 3 | LE16: 2 | LF16: 6 | LG16: 5 | LH16: 3 | LI16: 3 | LJ16: 5 | LK16: 5 | LL16: 3 | LM16: 4 | LN16: 4 | LO16: 5 | LP16: 3 | LQ16: 5 | LR16: 3 | LS16: 5 | LT16: 3 | LU16: 6 | LV16: 2 | LW16: 5 | LX16: 4 | LY16: 1 | LZ16: 6 | MA16: 5 | MB16: 4 | MC16: 2 | MD16: 5 | ME16: 5 | MF16: 4 | MG16: 3 | MH16: 4 | MI16: 5 | MJ16: 4 | MK16: 4 | ML16: 3 | MM16: 5 | MN16: 4 | MO16: 5 | MP16: 2 | MQ16: 5 | MR16: 4 | MS16: 6 | MT16: 1 | MU16: 5 | MV16: 5 | MW16: 1 | MX16: 5 | MY16: 5 | MZ16: 5 | NA16: 2 | NB16: 4 | NC16: 5 | ND16: 5 | NE16: 3 | NF16: 3 | NG16: 5 | NH16: 5 | NI16: 4 | NJ16: 2 | NK16: 5 | NL16: 5 | NM16: 5 | NN16: 1 | NO16: 5 | NP16: 6 | NQ16: 1 | NR16: 4 | NS16: 5 | NT16: 6 | NU16: 2 | NV16: 3 | NW16: 5 | NX16: 6 | NY16: 3 | NZ16: 2 | OA16: 5 | OB16: 6 | OC16: 4 | OD16: 1 | OE16: 6 | OF16: 1 | OG16: 3 | OH16: 6 | OI16: 6 | OJ16: 1 | OK16: 4 | OL16: 5 | OM16: 6 | ON16: 1 | OO16: 5 | OP16: 4 | OQ16: 6 | OR16: 1 | OS16: 6 | OT16: 3 | OU16: 6 | OV16: 2 | OW16: 2 | OX16: 6 | OY16: 6 | OZ16: 2 | PA16: 3 | PB16: 5 | PC16: 6 | PD16: 2 | PE16: 4 | PF16: 4 | PG16: 6 | PH16: 2 | PI16: 5 | PJ16: 3 | PK16: 6 | PL16: 2 | PM16: 6 | PN16: 2 | PO16: 6 | PP16: 3 | PQ16: 1 | PR16: 6 | PS16: 6 | PT16: 3 | PU16: 2 | PV16: 5 | PW16: 6 | PX16: 3 | PY16: 3 | PZ16: 4 | QA16: 6 | QB16: 3 | QC16: 4 | QD16: 3 | QE16: 6 | QF16: 3 | QG16: 5 | QH16: 2 | QI16: 6 | QJ16: 3 | QK16: 6 | QL16: 1 | QM16: 6 | QN16: 4 | QO16: 1 | QP16: 5 | QQ16: 6 | QR16: 4 | QS16: 2 | QT16: 4 | QU16: 6 | QV16: 4 | QW16: 3 | QX16: 3 | QY16: 6 | QZ16: 4 | RA16: 4 | RB16: 2 | RC16: 6 | RD16: 4 | RE16: 5 | RF16: 1 | RG16: 6 | RH16: 5 | RI16: 1 | RJ16: 4 | RK16: 6 | RL16: 5 | RM16: 2 | RN16: 3 | RO16: 6 | RP16: 5 | RQ16: 3 | RR16: 2 | RS16: 6 | RT16: 5 | RU16: 4 | RV16: 1 | RW16: 6 | RX16: 6 | RY16: 1 | RZ16: 3 | SA16: 6 | SB16: 6 | SC16: 2 | SD16: 2 | SE16: 6 | SF16: 6 | SG16: 3 | SH16: 1
B17: 17 | C17: 1 | D17: 4 | E17: 6 | F17: 6 | G17: 1 | H17: 5 | I17: 5 | J17: 6 | K17: 1 | L17: 5 | M17: 6 | N17: 5 | O17: 1 | P17: 6 | Q17: 4 | R17: 6 | S17: 1 | T17: 6 | U17: 5 | V17: 5 | W17: 1 | X17: 6 | Y17: 6 | Z17: 4 | AA17: 2 | AB17: 3 | AC17: 6 | AD17: 6 | AE17: 2 | AF17: 4 | AG17: 5 | AH17: 6 | AI17: 2 | AJ17: 4 | AK17: 6 | AL17: 5 | AM17: 2 | AN17: 5 | AO17: 4 | AP17: 6 | AQ17: 2 | AR17: 5 | AS17: 5 | AT17: 5 | AU17: 2 | AV17: 5 | AW17: 6 | AX17: 4 | AY17: 2 | AZ17: 6 | BA17: 3 | BB17: 6 | BC17: 2 | BD17: 6 | BE17: 4 | BF17: 5 | BG17: 2 | BH17: 6 | BI17: 5 | BJ17: 4 | BK17: 2 | BL17: 6 | BM17: 6 | BN17: 3 | BO17: 3 | BP17: 2 | BQ17: 6 | BR17: 6 | BS17: 3 | BT17: 3 | BU17: 5 | BV17: 6 | BW17: 3 | BX17: 3 | BY17: 6 | BZ17: 5 | CA17: 3 | CB17: 4 | CC17: 4 | CD17: 6 | CE17: 3 | CF17: 4 | CG17: 5 | CH17: 5 | CI17: 3 | CJ17: 4 | CK17: 6 | CL17: 4 | CM17: 3 | CN17: 5 | CO17: 3 | CP17: 6 | CQ17: 3 | CR17: 5 | CS17: 4 | CT17: 5 | CU17: 3 | CV17: 5 | CW17: 5 | CX17: 4 | CY17: 3 | CZ17: 5 | DA17: 6 | DB17: 3 | DC17: 3 | DD17: 6 | DE17: 2 | DF17: 6 | DG17: 3 | DH17: 6 | DI17: 3 | DJ17: 5 | DK17: 3 | DL17: 6 | DM17: 4 | DN17: 4 | DO17: 3 | DP17: 6 | DQ17: 5 | DR17: 3 | DS17: 3 | DT17: 6 | DU17: 6 | DV17: 2 | DW17: 4 | DX17: 1 | DY17: 6 | DZ17: 6 | EA17: 4 | EB17: 2 | EC17: 5 | ED17: 6 | EE17: 4 | EF17: 2 | EG17: 6 | EH17: 5 | EI17: 4 | EJ17: 3 | EK17: 4 | EL17: 6 | EM17: 4 | EN17: 3 | EO17: 5 | EP17: 5 | EQ17: 4 | ER17: 3 | ES17: 6 | ET17: 4 | EU17: 4 | EV17: 4 | EW17: 3 | EX17: 6 | EY17: 4 | EZ17: 4 | FA17: 4 | FB17: 5 | FC17: 4 | FD17: 4 | FE17: 5 | FF17: 4 | FG17: 4 | FH17: 4 | FI17: 6 | FJ17: 3 | FK17: 4 | FL17: 5 | FM17: 2 | FN17: 6 | FO17: 4 | FP17: 5 | FQ17: 3 | FR17: 5 | FS17: 4 | FT17: 5 | FU17: 4 | FV17: 4 | FW17: 4 | FX17: 5 | FY17: 5 | FZ17: 3 | GA17: 4 | GB17: 5 | GC17: 6 | GD17: 2 | GE17: 4 | GF17: 6 | GG17: 1 | GH17: 6 | GI17: 4 | GJ17: 6 | GK17: 2 | GL17: 5 | GM17: 4 | GN17: 6 | GO17: 3 | GP17: 4 | GQ17: 4 | GR17: 6 | GS17: 4 | GT17: 3 | GU17: 4 | GV17: 6 | GW17: 5 | GX17: 2 | GY17: 4 | GZ17: 6 | HA17: 6 | HB17: 1 | HC17: 5 | HD17: 1 | HE17: 5 | HF17: 6 | HG17: 5 | HH17: 1 | HI17: 6 | HJ17: 5 | HK17: 5 | HL17: 2 | HM17: 4 | HN17: 6 | HO17: 5 | HP17: 2 | HQ17: 5 | HR17: 5 | HS17: 5 | HT17: 2 | HU17: 6 | HV17: 4 | HW17: 5 | HX17: 3 | HY17: 3 | HZ17: 6 | IA17: 5 | IB17: 3 | IC17: 4 | ID17: 5 | IE17: 5 | IF17: 3 | IG17: 5 | IH17: 4 | II17: 5 | IJ17: 3 | IK17: 6 | IL17: 3 | IM17: 5 | IN17: 4 | IO17: 2 | IP17: 6 | IQ17: 5 | IR17: 4 | IS17: 3 | IT17: 5 | IU17: 5 | IV17: 4 | IW17: 4 | IX17: 4 | IY17: 5 | IZ17: 4 | JA17: 5 | JB17: 3 | JC17: 5 | JD17: 4 | JE17: 6 | JF17: 2 | JG17: 5 | JH17: 5 | JI17: 1 | JJ17: 6 | JK17: 5 | JL17: 5 | JM17: 2 | JN17: 5 | JO17: 5 | JP17: 5 | JQ17: 3 | JR17: 4 | JS17: 5 | JT17: 5 | JU17: 4 | JV17: 3 | JW17: 5 | JX17: 5 | JY17: 5 | JZ17: 2 | KA17: 5 | KB17: 5 | KC17: 6 | KD17: 1 | KE17: 5 | KF17: 6 | KG17: 1 | KH17: 5 | KI17: 5 | KJ17: 6 | KK17: 2 | KL17: 4 | KM17: 5 | KN17: 6 | KO17: 3 | KP17: 3 | KQ17: 5 | KR17: 6 | KS17: 4 | KT17: 2 | KU17: 5 | KV17: 6 | KW17: 5 | KX17: 1 | KY17: 6 | KZ17: 1 | LA17: 4 | LB17: 6 | LC17: 6 | LD17: 1 | LE17: 5 | LF17: 5 | LG17: 6 | LH17: 1 | LI17: 6 | LJ17: 4 | LK17: 6 | LL17: 2 | LM17: 3 | LN17: 6 | LO17: 6 | LP17: 2 | LQ17: 4 | LR17: 5 | LS17: 6 | LT17: 2 | LU17: 5 | LV17: 4 | LW17: 6 | LX17: 2 | LY17: 6 | LZ17: 3 | MA17: 6 | MB17: 3 | MC17: 2 | MD17: 6 | ME17: 6 | MF17: 3 | MG17: 3 | MH17: 5 | MI17: 6 | MJ17: 3 | MK17: 4 | ML17: 4 | MM17: 6 | MN17: 3 | MO17: 5 | MP17: 3 | MQ17: 6 | MR17: 3 | MS17: 6 | MT17: 2 | MU17: 6 | MV17: 4 | MW17: 1 | MX17: 6 | MY17: 6 | MZ17: 4 | NA17: 2 | NB17: 5 | NC17: 6 | ND17: 4 | NE17: 3 | NF17: 4 | NG17: 6 | NH17: 4 | NI17: 4 | NJ17: 3 | NK17: 6 | NL17: 4 | NM17: 5 | NN17: 2 | NO17: 6 | NP17: 4 | NQ17: 6 | NR17: 1 | NS17: 6 | NT17: 5 | NU17: 1 | NV17: 5 | NW17: 6 | NX17: 5 | NY17: 2 | NZ17: 4 | OA17: 6 | OB17: 5 | OC17: 3 | OD17: 3 | OE17: 6 | OF17: 5 | OG17: 4 | OH17: 2 | OI17: 6 | OJ17: 5 | OK17: 5 | OL17: 1 | OM17: 6 | ON17: 6 | OO17: 1 | OP17: 4 | OQ17: 6 | OR17: 6 | OS17: 2 | OT17: 3 | OU17: 6 | OV17: 6 | OW17: 3 | OX17: 2 | OY17: 6 | OZ17: 6 | PA17: 4 | PB17: 1
B18: 18 | C18: 1 | D18: 5 | E18: 6 | F18: 6 | G18: 1 | H18: 6 | I18: 5 | J18: 6 | K18: 1 | L18: 6 | M18: 6 | N18: 5 | O18: 2 | P18: 4 | Q18: 6 | R18: 6 | S18: 2 | T18: 5 | U18: 5 | V18: 6 | W18: 2 | X18: 5 | Y18: 6 | Z18: 5 | AA18: 2 | AB18: 6 | AC18: 4 | AD18: 6 | AE18: 2 | AF18: 6 | AG18: 5 | AH18: 5 | AI18: 2 | AJ18: 6 | AK18: 6 | AL18: 4 | AM18: 3 | AN18: 3 | AO18: 6 | AP18: 6 | AQ18: 3 | AR18: 4 | AS18: 5 | AT18: 6 | AU18: 3 | AV18: 4 | AW18: 6 | AX18: 5 | AY18: 3 | AZ18: 5 | BA18: 4 | BB18: 6 | BC18: 3 | BD18: 5 | BE18: 5 | BF18: 5 | BG18: 3 | BH18: 5 | BI18: 6 | BJ18: 4 | BK18: 3 | BL18: 6 | BM18: 3 | BN18: 6 | BO18: 3 | BP18: 6 | BQ18: 4 | BR18: 5 | BS18: 3 | BT18: 6 | BU18: 5 | BV18: 4 | BW18: 3 | BX18: 6 | BY18: 6 | BZ18: 3 | CA18: 4 | CB18: 2 | CC18: 6 | CD18: 6 | CE18: 4 | CF18: 3 | CG18: 5 | CH18: 6 | CI18: 4 | CJ18: 3 | CK18: 6 | CL18: 5 | CM18: 4 | CN18: 4 | CO18: 4 | CP18: 6 | CQ18: 4 | CR18: 4 | CS18: 5 | CT18: 5 | CU18: 4 | CV18: 4 | CW18: 6 | CX18: 4 | CY18: 4 | CZ18: 5 | DA18: 3 | DB18: 6 | DC18: 4 | DD18: 5 | DE18: 4 | DF18: 5 | DG18: 4 | DH18: 5 | DI18: 5 | DJ18: 4 | DK18: 4 | DL18: 5 | DM18: 6 | DN18: 3 | DO18: 4 | DP18: 6 | DQ18: 2 | DR18: 6 | DS18: 4 | DT18: 6 | DU18: 3 | DV18: 5 | DW18: 4 | DX18: 6 | DY18: 4 | DZ18: 4 | EA18: 4 | EB18: 6 | EC18: 5 | ED18: 3 | EE18: 4 | EF18: 6 | EG18: 6 | EH18: 2 | EI18: 5 | EJ18: 1 | EK18: 6 | EL18: 6 | EM18: 5 | EN18: 2 | EO18: 5 | EP18: 6 | EQ18: 5 | ER18: 2 | ES18: 6 | ET18: 5 | EU18: 5 | EV18: 3 | EW18: 4 | EX18: 6 | EY18: 5 | EZ18: 3 | FA18: 5 | FB18: 5 | FC18: 5 | FD18: 3 | FE18: 6 | FF18: 4 | FG18: 5 | FH18: 4 | FI18: 3 | FJ18: 6 | FK18: 5 | FL18: 4 | FM18: 4 | FN18: 5 | FO18: 5 | FP18: 4 | FQ18: 5 | FR18: 4 | FS18: 5 | FT18: 4 | FU18: 6 | FV18: 3 | FW18: 5 | FX18: 5 | FY18: 2 | FZ18: 6 | GA18: 5 | GB18: 5 | GC18: 3 | GD18: 5 | GE18: 5 | GF18: 5 | GG18: 4 | GH18: 4 | GI18: 5 | GJ18: 5 | GK18: 5 | GL18: 3 | GM18: 5 | GN18: 5 | GO18: 6 | GP18: 2 | GQ18: 5 | GR18: 6 | GS18: 1 | GT18: 6 | GU18: 5 | GV18: 6 | GW18: 2 | GX18: 5 | GY18: 5 | GZ18: 6 | HA18: 3 | HB18: 4 | HC18: 5 | HD18: 6 | HE18: 4 | HF18: 3 | HG18: 5 | HH18: 6 | HI18: 5 | HJ18: 2 | HK18: 5 | HL18: 6 | HM18: 6 | HN18: 1 | HO18: 6 | HP18: 1 | HQ18: 5 | HR18: 6 | HS18: 6 | HT18: 1 | HU18: 6 | HV18: 5 | HW18: 6 | HX18: 2 | HY18: 4 | HZ18: 6 | IA18: 6 | IB18: 2 | IC18: 5 | ID18: 5 | IE18: 6 | IF18: 2 | IG18: 6 | IH18: 4 | II18: 6 | IJ18: 3 | IK18: 3 | IL18: 6 | IM18: 6 | IN18: 3 | IO18: 4 | IP18: 5 | IQ18: 6 | IR18: 3 | IS18: 5 | IT18: 4 | IU18: 6 | IV18: 3 | IW18: 6 | IX18: 3 | IY18: 6 | IZ18: 4 | JA18: 2 | JB18: 6 | JC18: 6 | JD18: 4 | JE18: 3 | JF18: 5 | JG18: 6 | JH18: 4 | JI18: 4 | JJ18: 4 | JK18: 6 | JL18: 4 | JM18: 5 | JN18: 3 | JO18: 6 | JP18: 4 | JQ18: 6 | JR18: 2 | JS18: 6 | JT18: 5 | JU18: 1 | JV18: 6 | JW18: 6 | JX18: 5 | JY18: 2 | JZ18: 5 | KA18: 6 | KB18: 5 | KC18: 3 | KD18: 4 | KE18: 6 | KF18: 5 | KG18: 4 | KH18: 3 | KI18: 6 | KJ18: 5 | KK18: 5 | KL18: 2 | KM18: 6 | KN18: 5 | KO18: 6 | KP18: 1 | KQ18: 6 | KR18: 6 | KS18: 1 | KT18: 5 | KU18: 6 | KV18: 6 | KW18: 2 | KX18: 4 | KY18: 6 | KZ18: 6 | LA18: 3 | LB18: 3 | LC18: 6 | LD18: 6 | LE18: 4 | LF18: 2 | LG18: 6 | LH18: 6 | LI18: 5 | LJ18: 1
B19: 19 | C19: 1 | D19: 6 | E19: 6 | F19: 6 | G19: 2 | H19: 5 | I19: 6 | J19: 6 | K19: 2 | L19: 6 | M19: 5 | N19: 6 | O19: 2 | P19: 6 | Q19: 6 | R19: 5 | S19: 3 | T19: 4 | U19: 6 | V19: 6 | W19: 3 | X19: 5 | Y19: 5 | Z19: 6 | AA19: 3 | AB19: 5 | AC19: 6 | AD19: 5 | AE19: 3 | AF19: 6 | AG19: 4 | AH19: 6 | AI19: 3 | AJ19: 6 | AK19: 5 | AL19: 5 | AM19: 3 | AN19: 6 | AO19: 6 | AP19: 4 | AQ19: 4 | AR19: 3 | AS19: 6 | AT19: 6 | AU19: 4 | AV19: 4 | AW19: 5 | AX19: 6 | AY19: 4 | AZ19: 4 | BA19: 6 | BB19: 5 | BC19: 4 | BD19: 5 | BE19: 4 | BF19: 6 | BG19: 4 | BH19: 5 | BI19: 5 | BJ19: 5 | BK19: 4 | BL19: 5 | BM19: 6 | BN19: 4 | BO19: 4 | BP19: 6 | BQ19: 3 | BR19: 6 | BS19: 4 | BT19: 6 | BU19: 4 | BV19: 5 | BW19: 4 | BX19: 6 | BY19: 5 | BZ19: 4 | CA19: 4 | CB19: 6 | CC19: 6 | CD19: 3 | CE19: 5 | CF19: 2 | CG19: 6 | CH19: 6 | CI19: 5 | CJ19: 3 | CK19: 5 | CL19: 6 | CM19: 5 | CN19: 3 | CO19: 6 | CP19: 5 | CQ19: 5 | CR19: 4 | CS19: 4 | CT19: 6 | CU19: 5 | CV19: 4 | CW19: 5 | CX19: 5 | CY19: 5 | CZ19: 4 | DA19: 6 | DB19: 4 | DC19: 5 | DD19: 5 | DE19: 3 | DF19: 6 | DG19: 5 | DH19: 5 | DI19: 4 | DJ19: 5 | DK19: 5 | DL19: 5 | DM19: 5 | DN19: 4 | DO19: 5 | DP19: 5 | DQ19: 6 | DR19: 3 | DS19: 5 | DT19: 6 | DU19: 2 | DV19: 6 | DW19: 5 | DX19: 6 | DY19: 3 | DZ19: 5 | EA19: 5 | EB19: 6 | EC19: 4 | ED19: 4 | EE19: 5 | EF19: 6 | EG19: 5 | EH19: 3 | EI19: 5 | EJ19: 6 | EK19: 6 | EL19: 2 | EM19: 6 | EN19: 1 | EO19: 6 | EP19: 6 | EQ19: 6 | ER19: 2 | ES19: 5 | ET19: 6 | EU19: 6 | EV19: 2 | EW19: 6 | EX19: 5 | EY19: 6 | EZ19: 3 | FA19: 4 | FB19: 6 | FC19: 6 | FD19: 3 | FE19: 5 | FF19: 5 | FG19: 6 | FH19: 3 | FI19: 6 | FJ19: 4 | FK19: 6 | FL19: 4 | FM19: 3 | FN19: 6 | FO19: 6 | FP19: 4 | FQ19: 4 | FR19: 5 | FS19: 6 | FT19: 4 | FU19: 5 | FV19: 4 | FW19: 6 | FX19: 4 | FY19: 6 | FZ19: 3 | GA19: 6 | GB19: 5 | GC19: 2 | GD19: 6 | GE19: 6 | GF19: 5 | GG19: 3 | GH19: 5 | GI19: 6 | GJ19: 5 | GK19: 4 | GL19: 4 | GM19: 6 | GN19: 5 | GO19: 5 | GP19: 3 | GQ19: 6 | GR19: 5 | GS19: 6 | GT19: 2 | GU19: 6 | GV19: 6 | GW19: 1 | GX19: 6 | GY19: 6 | GZ19: 6 | HA19: 2 | HB19: 5 | HC19: 6 | HD19: 6 | HE19: 3 | HF19: 4 | HG19: 6 | HH19: 6 | HI19: 4 | HJ19: 3 | HK19: 6 | HL19: 6 | HM19: 5 | HN19: 2 | HO19: 6 | HP19: 6 | HQ19: 6 | HR19: 1
B20: 20 | C20: 2 | D20: 6 | E20: 6 | F20: 6 | G20: 3 | H20: 5 | I20: 6 | J20: 6 | K20: 3 | L20: 6 | M20: 5 | N20: 6 | O20: 3 | P20: 6 | Q20: 6 | R20: 5 | S20: 4 | T20: 4 | U20: 6 | V20: 6 | W20: 4 | X20: 5 | Y20: 5 | Z20: 6 | AA20: 4 | AB20: 5 | AC20: 6 | AD20: 5 | AE20: 4 | AF20: 6 | AG20: 4 | AH20: 6 | AI20: 4 | AJ20: 6 | AK20: 5 | AL20: 5 | AM20: 4 | AN20: 6 | AO20: 6 | AP20: 4 | AQ20: 5 | AR20: 3 | AS20: 6 | AT20: 6 | AU20: 5 | AV20: 4 | AW20: 5 | AX20: 6 | AY20: 5 | AZ20: 4 | BA20: 6 | BB20: 5 | BC20: 5 | BD20: 5 | BE20: 4 | BF20: 6 | BG20: 5 | BH20: 5 | BI20: 5 | BJ20: 5 | BK20: 5 | BL20: 5 | BM20: 6 | BN20: 4 | BO20: 5 | BP20: 6 | BQ20: 3 | BR20: 6 | BS20: 5 | BT20: 6 | BU20: 4 | BV20: 5 | BW20: 5 | BX20: 6 | BY20: 5 | BZ20: 4 | CA20: 5 | CB20: 6 | CC20: 6 | CD20: 3 | CE20: 6 | CF20: 2 | CG20: 6 | CH20: 6 | CI20: 6 | CJ20: 3 | CK20: 5 | CL20: 6 | CM20: 6 | CN20: 3 | CO20: 6 | CP20: 5 | CQ20: 6 | CR20: 4 | CS20: 4 | CT20: 6 | CU20: 6 | CV20: 4 | CW20: 5 | CX20: 5 | CY20: 6 | CZ20: 4 | DA20: 6 | DB20: 4 | DC20: 6 | DD20: 5 | DE20: 3 | DF20: 6 | DG20: 6 | DH20: 5 | DI20: 4 | DJ20: 5 | DK20: 6 | DL20: 5 | DM20: 5 | DN20: 4 | DO20: 6 | DP20: 5 | DQ20: 6 | DR20: 3 | DS20: 6 | DT20: 6 | DU20: 2 | DV20: 6 | DW20: 6 | DX20: 6 | DY20: 3 | DZ20: 5 | EA20: 6 | EB20: 6 | EC20: 4 | ED20: 4 | EE20: 6 | EF20: 6 | EG20: 5 | EH20: 3 | EI20: 6 | EJ20: 6 | EK20: 6 | EL20: 2
B21: 21 | C21: 3 | D21: 6 | E21: 6 | F21: 6 | G21: 4 | H21: 5 | I21: 6 | J21: 6 | K21: 4 | L21: 6 | M21: 5 | N21: 6 | O21: 4 | P21: 6 | Q21: 6 | R21: 5 | S21: 5 | T21: 4 | U21: 6 | V21: 6 | W21: 5 | X21: 5 | Y21: 5 | Z21: 6 | AA21: 5 | AB21: 5 | AC21: 6 | AD21: 5 | AE21: 5 | AF21: 6 | AG21: 4 | AH21: 6 | AI21: 5 | AJ21: 6 | AK21: 5 | AL21: 5 | AM21: 5 | AN21: 6 | AO21: 6 | AP21: 4 | AQ21: 6 | AR21: 3 | AS21: 6 | AT21: 6 | AU21: 6 | AV21: 4 | AW21: 5 | AX21: 6 | AY21: 6 | AZ21: 4 | BA21: 6 | BB21: 5 | BC21: 6 | BD21: 5 | BE21: 4 | BF21: 6 | BG21: 6 | BH21: 5 | BI21: 5 | BJ21: 5 | BK21: 6 | BL21: 5 | BM21: 6 | BN21: 4 | BO21: 6 | BP21: 6 | BQ21: 3 | BR21: 6 | BS21: 6 | BT21: 6 | BU21: 4 | BV21: 5 | BW21: 6 | BX21: 6 | BY21: 5 | BZ21: 4 | CA21: 6 | CB21: 6 | CC21: 6 | CD21: 3
B22: 22 | C22: 4 | D22: 6 | E22: 6 | F22: 6 | G22: 5 | H22: 5 | I22: 6 | J22: 6 | K22: 5 | L22: 6 | M22: 5 | N22: 6 | O22: 5 | P22: 6 | Q22: 6 | R22: 5 | S22: 6 | T22: 4 | U22: 6 | V22: 6 | W22: 6 | X22: 5 | Y22: 5 | Z22: 6 | AA22: 6 | AB22: 5 | AC22: 6 | AD22: 5 | AE22: 6 | AF22: 6 | AG22: 4 | AH22: 6 | AI22: 6 | AJ22: 6 | AK22: 5 | AL22: 5 | AM22: 6 | AN22: 6 | AO22: 6 | AP22: 4
B23: 23 | C23: 5 | D23: 6 | E23: 6 | F23: 6 | G23: 6 | H23: 5 | I23: 6 | J23: 6 | K23: 6 | L23: 6 | M23: 5 | N23: 6 | O23: 6 | P23: 6 | Q23: 6 | R23: 5
B24: 24 | C24: 6 | D24: 6 | E24: 6 | F24: 6

Sheet Dice throwing Program
C1: Frequence Histogram | M1: Throw | N1: Result | O1: Throw | P1: Result | Q1: Throw | R1: Result | S1: Throw | T1: Result | U1: Throw | V1: Result | W1: Throw | X1: Result | Y1: Throw | Z1: Result | AA1: Throw | AB1: Result | AC1: Throw | AD1: Result | AE1: Throw | AF1: Result | AG1: Throw | AH1: Result | AI1: Throw | AJ1: Result | AK1: Throw | AL1: Result | AM1: Throw | AN1: Result | AO1: Throw | AP1: Result | AQ1: Throw | AR1: Result | AS1: Throw | AT1: Result | AU1: Throw | AV1: Result | AW1: Throw | AX1: Result | AY1: Throw | AZ1: Result | BA1: Throw | BB1: Result | BC1: Throw | BD1: Result | BE1: Throw | BF1: Result | BG1: Throw | BH1: Result | BI1: Throw | BJ1: Result | BK1: Throw | BL1: Result | BM1: Throw | BN1: Result | BO1: Throw | BP1: Result | BQ1: Throw | BR1: Result | BS1: Throw | BT1: Result | BU1: Throw | BV1: Result | BW1: Throw | BX1: Result | BY1: Throw | BZ1: Result | CA1: Throw | CB1: Result | CC1: Throw | CD1: Result | CE1: Throw | CF1: Result | CG1: Throw | CH1: Result | CI1: Throw | CJ1: Result | CK1: Throw | CL1: Result | CM1: Throw | CN1: Result | CO1: Throw | CP1: Result | CQ1: Throw | CR1: Result | CS1: Throw | CT1: Result | CU1: Throw | CV1: Result | CW1: Throw | CX1: Result | CY1: Throw | CZ1: Result | DA1: Throw | DB1: Result | DC1: Throw | DD1: Result | DE1: Throw | DF1: Result | DG1: Throw | DH1: Result | DI1: Throw | DJ1: Result | DK1: Throw | DL1: Result | DM1: Throw | DN1: Result | DO1: Throw | DP1: Result | DQ1: Throw | DR1: Result | DS1: Throw | DT1: Result | DU1: Throw | DV1: Result | DW1: Throw | DX1: Result | DY1: Throw | DZ1: Result | EA1: Throw | EB1: Result | EC1: Throw | ED1: Result | EE1: Throw | EF1: Result | EG1: Throw | EH1: Result | EI1: Throw | EJ1: Result | EK1: Throw | EL1: Result | EM1: Throw | EN1: Result | EO1: Throw | EP1: Result | EQ1: Throw | ER1: Result | ES1: Throw | ET1: Result | EU1: Throw | EV1: Result | EW1: Throw | EX1: Result | EY1: Throw | EZ1: Result | FA1: Throw | FB1: Result | FC1: Throw | FD1: Result | FE1: Throw | FF1: Result | FG1: Throw | FH1: Result | FI1: Throw | FJ1: Result | FK1: Throw | FL1: Result | FM1: Throw | FN1: Result | FO1: Throw | FP1: Result | FQ1: Throw | FR1: Result | FS1: Throw | FT1: Result | FU1: Throw | FV1: Result | FW1: Throw | FX1: Result | FY1: Throw | FZ1: Result | GA1: Throw | GB1: Result | GC1: Throw | GD1: Result | GE1: Throw | GF1: Result | GG1: Throw | GH1: Result | GI1: Throw | GJ1: Result | GK1: Throw | GL1: Result | GM1: Throw | GN1: Result | GO1: Throw | GP1: Result | GQ1: Throw | GR1: Result | GS1: Throw | GT1: Result | GU1: Throw | GV1: Result | GW1: Throw | GX1: Result | GY1: Throw | GZ1: Result | HA1: Throw | HB1: Result | HC1: Throw | HD1: Result | HE1: Throw | HF1: Result | HG1: Throw | HH1: Result | HI1: Throw | HJ1: Result | HK1: Throw | HL1: Result | HM1: Throw | HN1: Result | HO1: Throw | HP1: Result | HQ1: Throw | HR1: Result | HS1: Throw | HT1: Result | HU1: Throw | HV1: Result | HW1: Throw | HX1: Result | HY1: Throw | HZ1: Result | IA1: Throw | IB1: Result | IC1: Throw | ID1: Result | IE1: Throw | IF1: Result | IG1: Throw | IH1: Result | II1: Throw | IJ1: Result | IK1: Throw | IL1: Result | IM1: Throw | IN1: Result | IO1: Throw | IP1: Result | IQ1: Throw | IR1: Result | IS1: Throw | IT1: Result | IU1: Throw | IV1: Result | IW1: Throw | IX1: Result | IY1: Throw | IZ1: Result | JA1: Throw | JB1: Result | JC1: Throw | JD1: Result | JE1: Throw | JF1: Result | JG1: Throw | JH1: Result | JI1: Throw | JJ1: Result | JK1: Throw | JL1: Result | JM1: Throw | JN1: Result | JO1: Throw | JP1: Result | JQ1: Throw | JR1: Result | JS1: Throw | JT1: Result | JU1: Throw | JV1: Result | JW1: Throw | JX1: Result | JY1: Throw | JZ1: Result | KA1: Throw | KB1: Result | KC1: Throw | KD1: Result | KE1: Throw | KF1: Result | KG1: Throw | KH1: Result | KI1: Throw | KJ1: Result | KK1: Throw | KL1: Result | KM1: Throw | KN1: Result | KO1: Throw | KP1: Result | KQ1: Throw | KR1: Result | KS1: Throw | KT1: Result | KU1: Throw | KV1: Result | KW1: Throw | KX1: Result | KY1: Throw | KZ1: Result | LA1: Throw | LB1: Result | LC1: Throw | LD1: Result | LE1: Throw | LF1: Result | LG1: Throw | LH1: Result | LI1: Throw | LJ1: Result | LK1: Throw | LL1: Result | LM1: Throw | LN1: Result | LO1: Throw | LP1: Result | LQ1: Throw | LR1: Result | LS1: Throw | LT1: Result | LU1: Throw | LV1: Result | LW1: Throw | LX1: Result | LY1: Throw | LZ1: Result | MA1: Throw | MB1: Result | MC1: Throw | MD1: Result | ME1: Throw | MF1: Result | MG1: Throw | MH1: Result | MI1: Throw | MJ1: Result | MK1: Throw | ML1: Result | MM1: Throw | MN1: Result | MO1: Throw | MP1: Result | MQ1: Throw | MR1: Result | MS1: Throw | MT1: Result | MU1: Throw | MV1: Result | MW1: Throw | MX1: Result | MY1: Throw | MZ1: Result | NA1: Throw | NB1: Result | NC1: Throw | ND1: Result | NE1: Throw | NF1: Result | NG1: Throw | NH1: Result | NI1: Throw | NJ1: Result | NK1: Throw | NL1: Result | NM1: Throw | NN1: Result | NO1: Throw | NP1: Result | NQ1: Throw | NR1: Result | NS1: Throw | NT1: Result | NU1: Throw | NV1: Result | NW1: Throw | NX1: Result | NY1: Throw | NZ1: Result | OA1: Throw | OB1: Result | OC1: Throw | OD1: Result | OE1: Throw | OF1: Result | OG1: Throw | OH1: Result | OI1: Throw | OJ1: Result | OK1: Throw | OL1: Result | OM1: Throw | ON1: Result | OO1: Throw | OP1: Result | OQ1: Throw | OR1: Result | OS1: Throw | OT1: Result | OU1: Throw | OV1: Result | OW1: Throw | OX1: Result | OY1: Throw | OZ1: Result | PA1: Throw | PB1: Result | PC1: Throw | PD1: Result | PE1: Throw | PF1: Result | PG1: Throw | PH1: Result | PI1: Throw | PJ1: Result | PK1: Throw | PL1: Result | PM1: Throw | PN1: Result | PO1: Throw | PP1: Result | PQ1: Throw | PR1: Result | PS1: Throw | PT1: Result | PU1: Throw | PV1: Result | PW1: Throw | PX1: Result | PY1: Throw | PZ1: Result | QA1: Throw | QB1: Result | QC1: Throw | QD1: Result | QE1: Throw | QF1: Result | QG1: Throw | QH1: Result | QI1: Throw | QJ1: Result | QK1: Throw | QL1: Result | QM1: Throw | QN1: Result | QO1: Throw | QP1: Result | QQ1: Throw | QR1: Result | QS1: Throw | QT1: Result | QU1: Throw | QV1: Result | QW1: Throw | QX1: Result | QY1: Throw | QZ1: Result | RA1: Throw | RB1: Result | RC1: Throw | RD1: Result | RE1: Throw | RF1: Result | RG1: Throw | RH1: Result | RI1: Throw | RJ1: Result | RK1: Throw | RL1: Result | RM1: Throw | RN1: Result | RO1: Throw | RP1: Result | RQ1: Throw | RR1: Result | RS1: Throw | RT1: Result | RU1: Throw | RV1: Result | RW1: Throw | RX1: Result | RY1: Throw | RZ1: Result | SA1: Throw | SB1: Result | SC1: Throw | SD1: Result | SE1: Throw | SF1: Result | SG1: Throw | SH1: Result | SI1: Throw | SJ1: Result | SK1: Throw | SL1: Result | SM1: Throw | SN1: Result | SO1: Throw | SP1: Result | SQ1: Throw | SR1: Result | SS1: Throw | ST1: Result | SU1: Throw | SV1: Result | SW1: Throw | SX1: Result | SY1: Throw | SZ1: Result | TA1: Throw | TB1: Result | TC1: Throw | TD1: Result | TE1: Throw | TF1: Result | TG1: Throw | TH1: Result | TI1: Throw | TJ1: Result | TK1: Throw | TL1: Result | TM1: Throw | TN1: Result | TO1: Throw | TP1: Result | TQ1: Throw | TR1: Result | TS1: Throw | TT1: Result | TU1: Throw | TV1: Result | TW1: Throw | TX1: Result | TY1: Throw | TZ1: Result | UA1: Throw | UB1: Result | UC1: Throw | UD1: Result | UE1: Throw | UF1: Result | UG1: Throw | UH1: Result | UI1: Throw | UJ1: Result | UK1: Throw | UL1: Result | UM1: Throw | UN1: Result | UO1: Throw | UP1: Result | UQ1: Throw | UR1: Result | US1: Throw | UT1: Result | UU1: Throw | UV1: Result | UW1: Throw | UX1: Result | UY1: Throw | UZ1: Result | VA1: Throw | VB1: Result | VC1: Throw | VD1: Result | VE1: Throw | VF1: Result | VG1: Throw | VH1: Result | VI1: Throw | VJ1: Result | VK1: Throw | VL1: Result | VM1: Throw | VN1: Result | VO1: Throw | VP1: Result | VQ1: Throw | VR1: Result | VS1: Throw | VT1: Result | VU1: Throw | VV1: Result | VW1: Throw | VX1: Result | VY1: Throw | VZ1: Result | WA1: Throw | WB1: Result | WC1: Throw | WD1: Result | WE1: Throw | WF1: Result | WG1: Throw | WH1: Result | WI1: Throw | WJ1: Result | WK1: Throw | WL1: Result | WM1: Throw | WN1: Result | WO1: Throw | WP1: Result | WQ1: Throw | WR1: Result | WS1: Throw | WT1: Result | WU1: Throw | WV1: Result | WW1: Throw | WX1: Result | WY1: Throw | WZ1: Result | XA1: Throw | XB1: Result | XC1: Throw | XD1: Result | XE1: Throw | XF1: Result | XG1: Throw | XH1: Result | XI1: Throw | XJ1: Result | XK1: Throw | XL1: Result | XM1: Throw | XN1: Result | XO1: Throw | XP1: Result | XQ1: Throw | XR1: Result | XS1: Throw | XT1: Result | XU1: Throw | XV1: Result | XW1: Throw | XX1: Result | XY1: Throw | XZ1: Result | YA1: Throw | YB1: Result | YC1: Throw | YD1: Result | YE1: Throw | YF1: Result | YG1: Throw | YH1: Result | YI1: Throw | YJ1: Result | YK1: Throw | YL1: Result | YM1: Throw | YN1: Result | YO1: Throw | YP1: Result | YQ1: Throw | YR1: Result | YS1: Throw | YT1: Result | YU1: Throw | YV1: Result | YW1: Throw | YX1: Result | YY1: Throw | YZ1: Result | ZA1: Throw | ZB1: Result | ZC1: Throw | ZD1: Result
A2: Grace's dice work
A3: Number of throws | B3: 10020
A4: Number of Dice (1-4) | B4: 1
A5: Mean | B5: 13.9251497
A6: Median | B6: 14
A7: Mode | B7: 14
A8: Range | B8: 20
A14: Frequency
A15: 1
A16: 2
A17: 3
A18: 4
A19: 5
A20: 6
A21: 7
A22: 8
A23: 9
A24: 10
A25: 11
A26: 12
A27: 13
A28: 14
A29: 15
A30: 16
A31: 17
A32: 18
A33: 19
A34: 20
A35: 21
A36: 22
A37: 23
A38: 24

Sheet 1st 7 terms of e
B3: Calculating the 1st Seven terms of the natural number e
C4: First 7 terms of e | E4: n! | F4: 1/n!
B5: n | C5: 0 | E5: =1/F5 -> 1 | F5: =1/FACT(C5) -> 1
C6: 1 | E6: =1/F6 -> 1 | F6: =1/FACT(C6) -> 1
C7: 2 | E7: =1/F7 -> 2 | F7: =1/FACT(C7) -> 0.5
C8: 3 | E8: =1/F8 -> 6 | F8: =1/FACT(C8) -> 0.1666666667
C9: 4 | E9: =1/F9 -> 24 | F9: =1/FACT(C9) -> 0.04166666667
C10: 5 | E10: =1/F10 -> 120 | F10: =1/FACT(C10) -> 0.008333333333
C11: 6 | E11: =1/F11 -> 720 | F11: =1/FACT(C11) -> 0.001388888889
C12: 7 | E12: =1/F12 -> 5040 | F12: =1/FACT(C12) -> 0.0001984126984
C13: Sum of 1/n! | D13: e | E13: @ | F13: =SUM(F5:F12) -> 2.718253968
